Workbook

Sheet 사용설명서
B5: ◎ 특 징
B6: ▶ 학교에서 발주하는 공사에 대해 자료 1회 입력으로 관련 서식 자동생성
B7: ▶ 업체용 서식, 기관용 서식, 관련 법령으로 구분
B9: ◎ 사용법
B10: ▶ 본 파일에는 매크로가 포함되어 있으므로 최초 사용시 상단의 "컨텐츠 사용" 클릭하여
B11: 매크로를 사용 할 수 있도록 허용하여 주시기 바랍니다.
B12: ▶ 데이터입력 시트에서 발주기관 자료, 계약업체 자료, 공사자료 입력
B13: - 노란색 셀 부분만 입력하면 하부 서식 시트에 자동 입력 됨
B14: - 셀 우측 상단 빨간삼각형 메모 표시 : 마우스 이동하면 부가 설명 팝업
B15: - 공사 자료명(청색) 클릭 시 관련법령으로 바로 이동 함
B16: - 데이터 셀 클릭 시 라디오 버튼이 활성화 되는 경우에는 클릭하여 데이터 입력
B17: - 업체용 서식 : 파란색 탭, 기관용 서식 : 황토색 탭, 관련법령 : 보라색 탭
B18: ▶ 데이터입력 탭 우측 서식바로가기 메뉴 활용
B19: - 업체용, 기관용, 관련법령으로 구분되어 있음
B20: - '서식바로가기' 하부 서식명 클릭 시 해당 서식 시트로 바로 이동 함
B21: - 서식 시트 우측 | E21: 데이터입력시트로 | F21: 버튼 클릭시 데이터입력 시트로 복귀 됨
B22: - '서식바로가기' 하부메뉴 중 '출력'버튼 클릭시 자동 출력
B23: ▶ 공정표, 현장대리인계, 직접시공계획서 입력 시 주의사항
B24: - 세부 공종, 기간표시, 개인정보는 해당 시트에서 직접 입력하여야 함
B25: - 메모 팝업으로 안내되어 있음
B27: ◎ 본 프로그램은 서울특별시교육청 교육시설안전과에서 제작한 것으로 허락없이
B28: 변경 또는 수정을 금합니다.

Sheet 데이터입력
B1: ◎ 본 프로그램은 서울특별시교육청 교육시설안전과에서 제작하였습니다.
B6: ▶ 아래의 노란색 셀을 채우면 파일내 서식 시트 자동 생성
B8: 1. 발주기관 자료 | G8: 1. 업체용
B9: 공 사 명 | C9: ○○초 돌봄교실 설치공사 | D9: 예산구분 | E9: 학교회계 | G9: 공사표준계약서
B10: 기 관 명 | C10: 서울○○초등학교 | D10: 정책사업 | E10: 학교교육여건개선시설 | G10: 승낙사항
B11: 공/사립 구분 | C11: 공립 | D11: 단위사업 | E11: 교육환경개선시설 | G11: 관련회계예규적용
B12: 공사감독 | C12: 행정실장 ○○○ | D12: 세부사업 | E12: 학교시설교육환경개선 | G12: 사용인감계
B13: 대표자 성명 | C13: ○○○ | D13: 세부항목 | E13: 학교회계전출금 | G13: 계약보증금납부서
B14: 기 관 주 소 | C14: 서울시 00구 00로 00길 000 | D14: 원가통계비목 | E14: 시설비 | G14: 계약보증금지급각서
B15: 검사자 직,성명 | C15: 행정실장 ○○○ | D15: 준공검사입회자 | E15: 교장 ○○○ | G15: 청렴서약서
G16: 수의계약각서
B17: 2. 계약업체 자료 | G17: 착공계,공정표(간이)
B18: 업 체 명 | C18: ○○건설㈜ | D18: 대 표 자 | E18: ○○○ | G18: 착공계
B19: 전화번호 | C19: 02-0000-0000 | D19: 주 소 | E19: 서울시 00구 00로 00길 000 | G19: 현장대리인계
B20: 공 종 | C20: 건축공사 | D20: 업 종 | E20: 시설물유지관리 | G20: 예정공정표
B21: 사업자등록번호 | C21: 1234567890 | D21: 은 행 명 | E21: 00은행 | G21: 직접시공계획서
B22: 현장대리인 | C22: ○○○ | D22: 계좌번호 | E22: 000-000000-00-000 | G22: 수도전기료납부각서
G23: 준공계
B24: 3. 공사 기초 자료 | G24: 준공검사원
B25: 계약금액 | C25: 123456000 | D25: 계약이행보증금액 | E25: =ROUNDDOWN((C25*E26),-1) -> 18518400 | G25: 하자보수보증금납부서
B26: 계 약 일 | C26: 2016-10-16 | D26: 계약보증금율 | E26: 0.15 | G26: 준공정산동의서
B27: 착공예정일 | C27: 2016-10-20 | D27: 계약이행각서여부 | E27: 지급각서 | G27: 대금청구서
B28: 착 공 일 | C28: 2016-10-20 | D28: 하자보증시작일 | E28: =C31 -> 2016-11-10 | G28: 2. 기관용
B29: 준공기한 | C29: 2016-11-18 | D29: 하자보증종료일 | E29: =EDATE(E28,E31*12)-1 -> 2017-11-09 | G29: 공사감독조서
B30: 실제준공일 | C30: 2016-11-18 | D30: 지연배상금율 | E30: 1/1000 | G30: 준공검사조서
B31: 준공검사일 | C31: 2016-11-10 | D31: 하자담보기간 | E31: 1 | G31: 공사대장
B32: 준공정산금액 | C32: 113456000 | D32: 하자보증금율 | E32: 0.03 | G32: 하자검사조서
B33: 계약번호 | C33: 12 | D33: 하자보증금액 | E33: =ROUNDDOWN((C25*E32),-1) -> 3703680 | G33: 하자대장
B34: 지 출 일 | C34: 2016-06-12 | D34: 하자보증금납부 | E34: 이행보증증권 | G34: 3. 관련법령
B35: 학교시설 사용 | C35: 수도·전기 | D35: 계약방법 | E35: 수의(1인) | G35: 수도전기료계산식
B36: 물가변동방법 | C36: 지수조정율 | D36: 설계자 | E36: ○○설계사무소 | G36: 관련법령
B38: ◎ 허락없이 프로그램의 변경 또는 수정을 금합니다.[문의 ☎02-3999-658]

Sheet 공사표준계약서
B2: 공 사 도 급 표 준 계 약 서 | W2: 계약번호 제 | Z2: =데이터입력!C33 -> 12 | AA2: 호
W3: 공고번호 제 | AA3: 호
B4: 계 약 자 | D4: 발 주 처 | H4: =데이터입력!C10 -> 서울○○초등학교
D5: 계약상대자 | H5: 상호 또는 법인명칭 : | K5: =데이터입력!C18 -> ○○건설㈜ | U5: 사업자등록번호 : | Y5: =데이터입력!C21 -> 1234567890
H6: 주 소 : | J6: =데이터입력!E19 -> 서울시 00구 00로 00길 000 | U6: 전화번호 : | Y6: =데이터입력!C19 -> 02-0000-0000
H7: 대표자 : | J7: =데이터입력!E18 -> ○○○ | AF7: 데이터입력시트로
D8: 연대보증인 | H8: 상호 또는 법인명칭 : | U8: 사업자등록번호 :
H9: 주소 : | U9: 전화번호 :
H10: 대표자 :
B11: 계 약 내 용 | D11: 공 사 명 | H11: =데이터입력!C9 -> ○○초 돌봄교실 설치공사
D12: 계 약 금 액 | H12: =TEXT(데이터입력!C25,"금 #,##0 원(금 "&NUMBERSTRING(데이터입력!C25,1)&" 원정)") -> 금 123,456,000 원(금 일억이천삼백사십오만육천 원정)
D13: 총공사부기금액 | H13: =TEXT(데이터입력!C25,"금 #,##0 원(금 "&NUMBERSTRING(데이터입력!C25,1)&" 원정)") -> 금 123,456,000 원(금 일억이천삼백사십오만육천 원정)
D14: 계약보증금 | H14: =TEXT(데이터입력!E25,"금 #,##0 원(금 "&NUMBERSTRING(데이터입력!E25,1)&" 원정)") -> 금 18,518,400 원(금 일천팔백오십일만팔천사백 원정)
D15: 현 장 | H15: =데이터입력!C10 -> 서울○○초등학교
D16: 지체상금률 | H16: =데이터입력!E30 -> 1/1000
D17: 물가변동계약금액조정방법 | H17: =데이터입력!C36 -> 지수조정율
D18: 착공연월일 | H18: =데이터입력!C27 -> 2016-10-20
D19: 준공연월일 | H19: =데이터입력!C29 -> 2016-11-18
D20: 기타사항
B21: 하자담보책임(복합공종의 경우 공종별 구분 기재)
B22: 공 종 | G22: 공종별 계약금액 | K22: 하자보수보증금율(%) 및 금액 | V22: 하자담보책임기간
B23: =데이터입력!C20 -> 건축공사 | G23: =데이터입력!C25 -> 123456000 | L23: =데이터입력!E32 -> 0.03 | N23: =G23*L23 -> 3703680 | V23: =데이터입력!E31 & "년" -> 1년
D27: 계약담당자와 계약상대자는 상호 대등한 입장에서 붙임의 계약문서에 의하여 위 공사에 대한
C28: 도급계약을 체결하고 신의에 따라 성실히 계약상의 의무를 이행할 것을 확약하며, 연대보증인은
C29: 계약자와 연대하여 계약상의 의무를 이행할 것을 확약한다. 이 계약의 증거로서 계약서를 작성하여
C30: 당사자가 기명날인한 후 각각 1통씩 보관한다.
C32: 붙임서류 | E32: 1. | F32: 공사입찰유의서 1부
E33: 2. | F33: 공사계약일반조건 1부
E34: 3. | F34: 공사계약특수조건 1부
E35: 4. | F35: 설계서 1부
E36: 5. | F36: 산출내역서 1부
B38: =데이터입력!C26 -> 2016-10-16
C40: 계약자 | N40: 계약상대자
C41: 기관명 | E41: : | F41: =데이터입력!C10 -> 서울○○초등학교 | N41: 상호 | P41: : | Q41: =데이터입력!C18 -> ○○건설㈜
C42: 주소 | E42: : | F42: =데이터입력!C14 -> 서울시 00구 00로 00길 000 | N42: 주소 | P42: : | Q42: =데이터입력!E19 -> 서울시 00구 00로 00길 000
C43: =RIGHT(데이터입력!C10,1)&"장" -> 교장 | E43: : | F43: =데이터입력!C13 &" (인)" -> ○○○ (인) | N43: 대표 | P43: : | Q43: =데이터입력!E18 &" (인)" -> ○○○ (인)

Sheet 승낙사항
B2: 승 낙 사 항 (공 사 집 행)
N3: 데이터입력시트로
B4: 1) 규격서 및 도면에 의하여 | G4: =데이터입력!C27 -> 2016-10-20 | J4: 착공하고 | K4: =데이터입력!C29 -> 2016-11-18 | L4: 까지
C5: 준공 하여야 한다.
B7: 2) 설계의 변경에 의하여 계약금액에 증감이 생긴 때에는 명세서상의 단가로 증감하고
C8: 그 단가에 의하기 어려운 때에는 설계변경 당시의 단가에 의한다.
B10: 3) 기한 내에 공사를 완공하지 못한 때에는 그 지연일수 1일에 대하여 계약금액의
C11: =데이터입력!E30 -> 1/1000 | D11: 에 해당하는 지연배상금을 납부하여야 하며, 납부하여야할 금액은 계약대가
C12: 에서 상계할 수 있다.
B14: 4) 계약상대자는 공사 준공일로부터 | H14: =데이터입력!E31 -> 1 | I14: 년간 그 공사의 공종별 하자에 대하여 담보
C15: 책임을 진다.
B17: ="5) 기타 이 계약서에 명시되지 아니한 사항은 " & IF(LEFT(데이터입력!C11,1)="공","지방자치단체를 당사자로 하는 계약에","국가를 당사자로 하는 계약에") -> 5) 기타 이 계약서에 명시되지 아니한 사항은 지방자치단체를 당사자로 하는 계약에
C18: 관한 법률 등의 규정을 준용한다.
B21: =데이터입력!C26 -> 2016-10-16
C24: 계약명 | E24: : | F24: =데이터입력!C9 -> ○○초 돌봄교실 설치공사
C25: 상호 | E25: : | F25: =데이터입력!C18 -> ○○건설㈜
C26: 사업자등록번호 | E26: : | F26: =데이터입력!C21 -> 1234567890
C27: 주소 | E27: : | F27: =데이터입력!E19 -> 서울시 00구 00로 00길 000
C28: 대표자 | E28: : | F28: =데이터입력!E18 & " (인)" -> ○○○ (인)

Sheet 관련 회계예규 적용
B2: 관련 회계예규 적용
B4: 본 계약 체결 당시의 회계예규(일반조건, 특수조건(조달청 | O4: 데이터입력시트로
B6: 공사계약특수조건 포함), 입찰유의서, 시방서 등] 는 본계약서의
B8: 첨부 여부와 관계없이 당연히 적용된다.
B13: =데이터입력!C26 -> 2016-10-16
C17: 계약명 | G17: : | H17: =데이터입력!C9 -> ○○초 돌봄교실 설치공사
C18: 상호 | G18: : | H18: =데이터입력!C18 -> ○○건설㈜
C19: 사업자등록번호 | G19: : | H19: =데이터입력!C21 -> 1234567890
C20: 주소 | G20: : | H20: =데이터입력!E19 -> 서울시 00구 00로 00길 000
C21: 대표자 | G21: : | H21: =데이터입력!E18 & " (인)" -> ○○○ (인)
C25: =IF(RIGHT(데이터입력!$C$10,2)="학교",데이터입력!$C$10 & "장 귀하",IF(RIGHT(데이터입력!$C$10,3)="교육청",데이터입력!$C$10 & "교육감 귀하",IF(RIGHT(데이터입력!$C$10,3)="지원청",데이터입력!$C$10 & "교육장 귀하",데이터입력!$C$10 & "장 귀하"))) -> 서울○○초등학교장 귀하

Sheet 사용인감계
B3: 사 용 인 감 계
D7: 증 명 인 감 | G7: 사 용 인 감 | L7: 데이터입력시트로
B12: 위 인감은 본인이 사용하는 인감으로서 아래 공사의 계약관련 등에 사용하겠
B14: 으며, 위 인감사용으로 인한 법률상의 모든 책임은 본인(폐사)이 질 것을 확약
B16: 하고 이에 사용인감계를 제출합니다.
C19: ="□ 공 사 명 : " & 데이터입력!C9 -> □ 공 사 명 : ○○초 돌봄교실 설치공사
D22: =데이터입력!C26 -> 2016-10-16
D25: 회 사 명 : | F25: =데이터입력!C18 -> ○○건설㈜
D26: 대 표 자 : | F26: =데이터입력!E18 &" (인)" -> ○○○ (인)
D27: 주 소 : | F27: =데이터입력!E19 -> 서울시 00구 00로 00길 000
B31: =IF(RIGHT(데이터입력!$C$10,2)="학교",데이터입력!$C$10 & "장 귀하",IF(RIGHT(데이터입력!$C$10,3)="교육청",데이터입력!$C$10 & "교육감 귀하",IF(RIGHT(데이터입력!$C$10,3)="지원청",데이터입력!$C$10 & "교육장 귀하",데이터입력!$C$10 & "장 귀하"))) -> 서울○○초등학교장 귀하

Sheet 계약보증금납부서
A2: 계 약 보 증 금 납 부 서
A3: 계 약 건 명 | D3: =데이터입력!C9 -> ○○초 돌봄교실 설치공사 | S3: 데이터입력시트로
A4: 계 약 번 호 | D4: 제 | F4: =데이터입력!C33 -> 12 | G4: 호 | H4: 계약(예정)연월일 | N4: =데이터입력!C26 -> 2016-10-16
A5: 계 약 금 액 | D5: =TEXT(데이터입력!C25,"금 #,##0 원(금 "&NUMBERSTRING(데이터입력!C25,1)&" 원정)") -> 금 123,456,000 원(금 일억이천삼백사십오만육천 원정)
A6: 계약보증금액 | D6: =TEXT(데이터입력!E25,"금 #,##0 원(금 "&NUMBERSTRING(데이터입력!E25,1)&" 원정)") -> 금 18,518,400 원(금 일천팔백오십일만팔천사백 원정)
A7: 보증금납부방법 | D7: =데이터입력!E27 -> 지급각서
A8: 계약이행기간 | D8: =데이터입력!C28 -> 2016-10-20 | H8: ~ | I8: =데이터입력!C29 -> 2016-11-18
B11: 위의 금액을 계약보증금으로 납부합니다.
B14: =데이터입력!C26 -> 2016-10-16
B16: 업 체 명 : | C16: =데이터입력!C18 -> ○○건설㈜
B17: 사업자등록번호 : | C17: =데이터입력!C21 -> 1234567890
B18: 주 소 : | C18: =데이터입력!E19 -> 서울시 00구 00로 00길 000
B19: 대 표 자 : | C19: =데이터입력!E18 & " (인)" -> ○○○ (인)
B21: =IF(RIGHT(데이터입력!$C$10,2)="학교",데이터입력!$C$10 & "장 귀하",IF(RIGHT(데이터입력!$C$10,3)="교육청",데이터입력!$C$10 & "교육감 귀하",IF(RIGHT(데이터입력!$C$10,3)="지원청",데이터입력!$C$10 & "교육장 귀하",데이터입력!$C$10 & "장 귀하"))) -> 서울○○초등학교장 귀하 | C21: =IF(RIGHT(데이터입력!$C$10,2)="학교",데이터입력!$C$10 & "장 귀하",IF(RIGHT(데이터입력!$C$10,3)="교육청",데이터입력!$C$10 & "교육감 귀하",IF(RIGHT(데이터입력!$C$10,3)="지원청",데이터입력!$C$10 & "교육장 귀하",데이터입력!$C$10 & "장 귀하"))) -> 서울○○초등학교장 귀하 | D21: =IF(RIGHT(데이터입력!$C$10,2)="학교",데이터입력!$C$10 & "장 귀하",IF(RIGHT(데이터입력!$C$10,3)="교육청",데이터입력!$C$10 & "교육감 귀하",IF(RIGHT(데이터입력!$C$10,3)="지원청",데이터입력!$C$10 & "교육장 귀하",데이터입력!$C$10 & "장 귀하"))) -> 서울○○초등학교장 귀하 | E21: =IF(RIGHT(데이터입력!$C$10,2)="학교",데이터입력!$C$10 & "장 귀하",IF(RIGHT(데이터입력!$C$10,3)="교육청",데이터입력!$C$10 & "교육감 귀하",IF(RIGHT(데이터입력!$C$10,3)="지원청",데이터입력!$C$10 & "교육장 귀하",데이터입력!$C$10 & "장 귀하"))) -> 서울○○초등학교장 귀하 | F21: =IF(RIGHT(데이터입력!$C$10,2)="학교",데이터입력!$C$10 & "장 귀하",IF(RIGHT(데이터입력!$C$10,3)="교육청",데이터입력!$C$10 & "교육감 귀하",IF(RIGHT(데이터입력!$C$10,3)="지원청",데이터입력!$C$10 & "교육장 귀하",데이터입력!$C$10 & "장 귀하"))) -> 서울○○초등학교장 귀하 | G21: =IF(RIGHT(데이터입력!$C$10,2)="학교",데이터입력!$C$10 & "장 귀하",IF(RIGHT(데이터입력!$C$10,3)="교육청",데이터입력!$C$10 & "교육감 귀하",IF(RIGHT(데이터입력!$C$10,3)="지원청",데이터입력!$C$10 & "교육장 귀하",데이터입력!$C$10 & "장 귀하"))) -> 서울○○초등학교장 귀하 | H21: =IF(RIGHT(데이터입력!$C$10,2)="학교",데이터입력!$C$10 & "장 귀하",IF(RIGHT(데이터입력!$C$10,3)="교육청",데이터입력!$C$10 & "교육감 귀하",IF(RIGHT(데이터입력!$C$10,3)="지원청",데이터입력!$C$10 & "교육장 귀하",데이터입력!$C$10 & "장 귀하"))) -> 서울○○초등학교장 귀하 | I21: =IF(RIGHT(데이터입력!$C$10,2)="학교",데이터입력!$C$10 & "장 귀하",IF(RIGHT(데이터입력!$C$10,3)="교육청",데이터입력!$C$10 & "교육감 귀하",IF(RIGHT(데이터입력!$C$10,3)="지원청",데이터입력!$C$10 & "교육장 귀하",데이터입력!$C$10 & "장 귀하"))) -> 서울○○초등학교장 귀하 | J21: =IF(RIGHT(데이터입력!$C$10,2)="학교",데이터입력!$C$10 & "장 귀하",IF(RIGHT(데이터입력!$C$10,3)="교육청",데이터입력!$C$10 & "교육감 귀하",IF(RIGHT(데이터입력!$C$10,3)="지원청",데이터입력!$C$10 & "교육장 귀하",데이터입력!$C$10 & "장 귀하"))) -> 서울○○초등학교장 귀하 | K21: =IF(RIGHT(데이터입력!$C$10,2)="학교",데이터입력!$C$10 & "장 귀하",IF(RIGHT(데이터입력!$C$10,3)="교육청",데이터입력!$C$10 & "교육감 귀하",IF(RIGHT(데이터입력!$C$10,3)="지원청",데이터입력!$C$10 & "교육장 귀하",데이터입력!$C$10 & "장 귀하"))) -> 서울○○초등학교장 귀하 | L21: =IF(RIGHT(데이터입력!$C$10,2)="학교",데이터입력!$C$10 & "장 귀하",IF(RIGHT(데이터입력!$C$10,3)="교육청",데이터입력!$C$10 & "교육감 귀하",IF(RIGHT(데이터입력!$C$10,3)="지원청",데이터입력!$C$10 & "교육장 귀하",데이터입력!$C$10 & "장 귀하"))) -> 서울○○초등학교장 귀하 | M21: =IF(RIGHT(데이터입력!$C$10,2)="학교",데이터입력!$C$10 & "장 귀하",IF(RIGHT(데이터입력!$C$10,3)="교육청",데이터입력!$C$10 & "교육감 귀하",IF(RIGHT(데이터입력!$C$10,3)="지원청",데이터입력!$C$10 & "교육장 귀하",데이터입력!$C$10 & "장 귀하"))) -> 서울○○초등학교장 귀하 | N21: =IF(RIGHT(데이터입력!$C$10,2)="학교",데이터입력!$C$10 & "장 귀하",IF(RIGHT(데이터입력!$C$10,3)="교육청",데이터입력!$C$10 & "교육감 귀하",IF(RIGHT(데이터입력!$C$10,3)="지원청",데이터입력!$C$10 & "교육장 귀하",데이터입력!$C$10 & "장 귀하"))) -> 서울○○초등학교장 귀하 | O21: =IF(RIGHT(데이터입력!$C$10,2)="학교",데이터입력!$C$10 & "장 귀하",IF(RIGHT(데이터입력!$C$10,3)="교육청",데이터입력!$C$10 & "교육감 귀하",IF(RIGHT(데이터입력!$C$10,3)="지원청",데이터입력!$C$10 & "교육장 귀하",데이터입력!$C$10 & "장 귀하"))) -> 서울○○초등학교장 귀하 | P21: =IF(RIGHT(데이터입력!$C$10,2)="학교",데이터입력!$C$10 & "장 귀하",IF(RIGHT(데이터입력!$C$10,3)="교육청",데이터입력!$C$10 & "교육감 귀하",IF(RIGHT(데이터입력!$C$10,3)="지원청",데이터입력!$C$10 & "교육장 귀하",데이터입력!$C$10 & "장 귀하"))) -> 서울○○초등학교장 귀하 | Q21: =IF(RIGHT(데이터입력!$C$10,2)="학교",데이터입력!$C$10 & "장 귀하",IF(RIGHT(데이터입력!$C$10,3)="교육청",데이터입력!$C$10 & "교육감 귀하",IF(RIGHT(데이터입력!$C$10,3)="지원청",데이터입력!$C$10 & "교육장 귀하",데이터입력!$C$10 & "장 귀하"))) -> 서울○○초등학교장 귀하

Sheet 계약보증금 지급각서
B2: 계약보증금 지급각서
Y3: 데이터입력시트로
B4: =IF(RIGHT(데이터입력!$C$10,2)="학교",데이터입력!$C$10 & "장",IF(RIGHT(데이터입력!$C$10,3)="교육청",데이터입력!$C$10 & "교육감",IF(RIGHT(데이터입력!$C$10,3)="지원청",데이터입력!$C$10 & "교육장",데이터입력!$C$10 & "장"))) -> 서울○○초등학교장 | I4: 과 체결한 | M4: =데이터입력!C9 -> ○○초 돌봄교실 설치공사 | W4: 계약에
B5: ="대하여 " & IF(LEFT(데이터입력!C11,1)="공","지방자치단체를 당사자로 하는 계약에 관한 법률 시행령 제53조 제1항의 규정에","국가를 당사자로 하는 계약에 관한 법률 시행령 제50조 제6항의 규정에") -> 대하여 지방자치단체를 당사자로 하는 계약에 관한 법률 시행령 제53조 제1항의 규정에
B6: ="의거 계약보증금을 면제 받았으나, " & IF(LEFT(데이터입력!C11,1)="공","같은법 시행령 제54조","같은법 시행령 제51조") & "의 계약보증금 세입조치" -> 의거 계약보증금을 면제 받았으나, 같은법 시행령 제54조의 계약보증금 세입조치
B7: 사유가 발생하였을 때는 지체 없이 이에 해당하는 금액을 현금으로 납부할 것을
B8: 확약합니다.
B10: 계 약 건 명 : | D10: =데이터입력!C9 -> ○○초 돌봄교실 설치공사
B11: 계 약 금 액 : | D11: =TEXT(데이터입력!C25,"금 #,##0 원(금 "&NUMBERSTRING(데이터입력!C25,1)&" 원정)") -> 금 123,456,000 원(금 일억이천삼백사십오만육천 원정)
B12: 계약보증금 : | D12: =TEXT(데이터입력!E25,"금 #,##0 원(금 "&NUMBERSTRING(데이터입력!E25,1)&" 원정)") -> 금 18,518,400 원(금 일천팔백오십일만팔천사백 원정)
B14: =데이터입력!C26 -> 2016-10-16
E16: 업체명 | J16: : | K16: =데이터입력!C18 -> ○○건설㈜
E17: 사업자등록번호 | J17: : | K17: =데이터입력!C21 -> 1234567890
E18: 주소 | J18: : | K18: =데이터입력!E19 -> 서울시 00구 00로 00길 000
E19: 대표자 | J19: : | K19: =데이터입력!E18 & " (인)" -> ○○○ (인)
B22: =IF(RIGHT(데이터입력!$C$10,2)="학교",데이터입력!$C$10 & "장 귀하",IF(RIGHT(데이터입력!$C$10,3)="교육청",데이터입력!$C$10 & "교육감 귀하",IF(RIGHT(데이터입력!$C$10,3)="지원청",데이터입력!$C$10 & "교육장 귀하",데이터입력!$C$10 & "장 귀하"))) -> 서울○○초등학교장 귀하 | C22: =IF(RIGHT(데이터입력!$C$10,2)="학교",데이터입력!$C$10 & "장 귀하",IF(RIGHT(데이터입력!$C$10,3)="교육청",데이터입력!$C$10 & "교육감 귀하",IF(RIGHT(데이터입력!$C$10,3)="지원청",데이터입력!$C$10 & "교육장 귀하",데이터입력!$C$10 & "장 귀하"))) -> 서울○○초등학교장 귀하 | D22: =IF(RIGHT(데이터입력!$C$10,2)="학교",데이터입력!$C$10 & "장 귀하",IF(RIGHT(데이터입력!$C$10,3)="교육청",데이터입력!$C$10 & "교육감 귀하",IF(RIGHT(데이터입력!$C$10,3)="지원청",데이터입력!$C$10 & "교육장 귀하",데이터입력!$C$10 & "장 귀하"))) -> 서울○○초등학교장 귀하 | E22: =IF(RIGHT(데이터입력!$C$10,2)="학교",데이터입력!$C$10 & "장 귀하",IF(RIGHT(데이터입력!$C$10,3)="교육청",데이터입력!$C$10 & "교육감 귀하",IF(RIGHT(데이터입력!$C$10,3)="지원청",데이터입력!$C$10 & "교육장 귀하",데이터입력!$C$10 & "장 귀하"))) -> 서울○○초등학교장 귀하 | F22: =IF(RIGHT(데이터입력!$C$10,2)="학교",데이터입력!$C$10 & "장 귀하",IF(RIGHT(데이터입력!$C$10,3)="교육청",데이터입력!$C$10 & "교육감 귀하",IF(RIGHT(데이터입력!$C$10,3)="지원청",데이터입력!$C$10 & "교육장 귀하",데이터입력!$C$10 & "장 귀하"))) -> 서울○○초등학교장 귀하 | G22: =IF(RIGHT(데이터입력!$C$10,2)="학교",데이터입력!$C$10 & "장 귀하",IF(RIGHT(데이터입력!$C$10,3)="교육청",데이터입력!$C$10 & "교육감 귀하",IF(RIGHT(데이터입력!$C$10,3)="지원청",데이터입력!$C$10 & "교육장 귀하",데이터입력!$C$10 & "장 귀하"))) -> 서울○○초등학교장 귀하 | H22: =IF(RIGHT(데이터입력!$C$10,2)="학교",데이터입력!$C$10 & "장 귀하",IF(RIGHT(데이터입력!$C$10,3)="교육청",데이터입력!$C$10 & "교육감 귀하",IF(RIGHT(데이터입력!$C$10,3)="지원청",데이터입력!$C$10 & "교육장 귀하",데이터입력!$C$10 & "장 귀하"))) -> 서울○○초등학교장 귀하 | I22: =IF(RIGHT(데이터입력!$C$10,2)="학교",데이터입력!$C$10 & "장 귀하",IF(RIGHT(데이터입력!$C$10,3)="교육청",데이터입력!$C$10 & "교육감 귀하",IF(RIGHT(데이터입력!$C$10,3)="지원청",데이터입력!$C$10 & "교육장 귀하",데이터입력!$C$10 & "장 귀하"))) -> 서울○○초등학교장 귀하 | J22: =IF(RIGHT(데이터입력!$C$10,2)="학교",데이터입력!$C$10 & "장 귀하",IF(RIGHT(데이터입력!$C$10,3)="교육청",데이터입력!$C$10 & "교육감 귀하",IF(RIGHT(데이터입력!$C$10,3)="지원청",데이터입력!$C$10 & "교육장 귀하",데이터입력!$C$10 & "장 귀하"))) -> 서울○○초등학교장 귀하 | K22: =IF(RIGHT(데이터입력!$C$10,2)="학교",데이터입력!$C$10 & "장 귀하",IF(RIGHT(데이터입력!$C$10,3)="교육청",데이터입력!$C$10 & "교육감 귀하",IF(RIGHT(데이터입력!$C$10,3)="지원청",데이터입력!$C$10 & "교육장 귀하",데이터입력!$C$10 & "장 귀하"))) -> 서울○○초등학교장 귀하 | L22: =IF(RIGHT(데이터입력!$C$10,2)="학교",데이터입력!$C$10 & "장 귀하",IF(RIGHT(데이터입력!$C$10,3)="교육청",데이터입력!$C$10 & "교육감 귀하",IF(RIGHT(데이터입력!$C$10,3)="지원청",데이터입력!$C$10 & "교육장 귀하",데이터입력!$C$10 & "장 귀하"))) -> 서울○○초등학교장 귀하 | M22: =IF(RIGHT(데이터입력!$C$10,2)="학교",데이터입력!$C$10 & "장 귀하",IF(RIGHT(데이터입력!$C$10,3)="교육청",데이터입력!$C$10 & "교육감 귀하",IF(RIGHT(데이터입력!$C$10,3)="지원청",데이터입력!$C$10 & "교육장 귀하",데이터입력!$C$10 & "장 귀하"))) -> 서울○○초등학교장 귀하 | N22: =IF(RIGHT(데이터입력!$C$10,2)="학교",데이터입력!$C$10 & "장 귀하",IF(RIGHT(데이터입력!$C$10,3)="교육청",데이터입력!$C$10 & "교육감 귀하",IF(RIGHT(데이터입력!$C$10,3)="지원청",데이터입력!$C$10 & "교육장 귀하",데이터입력!$C$10 & "장 귀하"))) -> 서울○○초등학교장 귀하 | O22: =IF(RIGHT(데이터입력!$C$10,2)="학교",데이터입력!$C$10 & "장 귀하",IF(RIGHT(데이터입력!$C$10,3)="교육청",데이터입력!$C$10 & "교육감 귀하",IF(RIGHT(데이터입력!$C$10,3)="지원청",데이터입력!$C$10 & "교육장 귀하",데이터입력!$C$10 & "장 귀하"))) -> 서울○○초등학교장 귀하 | P22: =IF(RIGHT(데이터입력!$C$10,2)="학교",데이터입력!$C$10 & "장 귀하",IF(RIGHT(데이터입력!$C$10,3)="교육청",데이터입력!$C$10 & "교육감 귀하",IF(RIGHT(데이터입력!$C$10,3)="지원청",데이터입력!$C$10 & "교육장 귀하",데이터입력!$C$10 & "장 귀하"))) -> 서울○○초등학교장 귀하 | Q22: =IF(RIGHT(데이터입력!$C$10,2)="학교",데이터입력!$C$10 & "장 귀하",IF(RIGHT(데이터입력!$C$10,3)="교육청",데이터입력!$C$10 & "교육감 귀하",IF(RIGHT(데이터입력!$C$10,3)="지원청",데이터입력!$C$10 & "교육장 귀하",데이터입력!$C$10 & "장 귀하"))) -> 서울○○초등학교장 귀하 | R22: =IF(RIGHT(데이터입력!$C$10,2)="학교",데이터입력!$C$10 & "장 귀하",IF(RIGHT(데이터입력!$C$10,3)="교육청",데이터입력!$C$10 & "교육감 귀하",IF(RIGHT(데이터입력!$C$10,3)="지원청",데이터입력!$C$10 & "교육장 귀하",데이터입력!$C$10 & "장 귀하"))) -> 서울○○초등학교장 귀하 | S22: =IF(RIGHT(데이터입력!$C$10,2)="학교",데이터입력!$C$10 & "장 귀하",IF(RIGHT(데이터입력!$C$10,3)="교육청",데이터입력!$C$10 & "교육감 귀하",IF(RIGHT(데이터입력!$C$10,3)="지원청",데이터입력!$C$10 & "교육장 귀하",데이터입력!$C$10 & "장 귀하"))) -> 서울○○초등학교장 귀하 | T22: =IF(RIGHT(데이터입력!$C$10,2)="학교",데이터입력!$C$10 & "장 귀하",IF(RIGHT(데이터입력!$C$10,3)="교육청",데이터입력!$C$10 & "교육감 귀하",IF(RIGHT(데이터입력!$C$10,3)="지원청",데이터입력!$C$10 & "교육장 귀하",데이터입력!$C$10 & "장 귀하"))) -> 서울○○초등학교장 귀하 | U22: =IF(RIGHT(데이터입력!$C$10,2)="학교",데이터입력!$C$10 & "장 귀하",IF(RIGHT(데이터입력!$C$10,3)="교육청",데이터입력!$C$10 & "교육감 귀하",IF(RIGHT(데이터입력!$C$10,3)="지원청",데이터입력!$C$10 & "교육장 귀하",데이터입력!$C$10 & "장 귀하"))) -> 서울○○초등학교장 귀하 | V22: =IF(RIGHT(데이터입력!$C$10,2)="학교",데이터입력!$C$10 & "장 귀하",IF(RIGHT(데이터입력!$C$10,3)="교육청",데이터입력!$C$10 & "교육감 귀하",IF(RIGHT(데이터입력!$C$10,3)="지원청",데이터입력!$C$10 & "교육장 귀하",데이터입력!$C$10 & "장 귀하"))) -> 서울○○초등학교장 귀하 | W22: =IF(RIGHT(데이터입력!$C$10,2)="학교",데이터입력!$C$10 & "장 귀하",IF(RIGHT(데이터입력!$C$10,3)="교육청",데이터입력!$C$10 & "교육감 귀하",IF(RIGHT(데이터입력!$C$10,3)="지원청",데이터입력!$C$10 & "교육장 귀하",데이터입력!$C$10 & "장 귀하"))) -> 서울○○초등학교장 귀하

Sheet 청렴서약서
A2: 청 렴 서 약 서
B4: =" 본 계약에 참여한 당사 대리인과 임직원은 ｢" & IF(LEFT(데이터입력!C11,1)="공","지방계약법｣ 제6조의2에 따라 입찰","국가계약법｣ 제5조의2에 따라 입찰") -> 본 계약에 참여한 당사 대리인과 임직원은 ｢지방계약법｣ 제6조의2에 따라 입찰 | M4: 데이터입력시트로
B5: (견적), 낙찰, 계약체결, 계약이행 과정에서 아래 각 호의 청렴서약 사항을 준수할
B6: 것이며, 이를 위반할 때에는 낙찰을 취소하거나 계약을 해제·해지하는 등의 모든
B7: 불이익을 감수하고, 이에 민·형사상 어떠한 이의도 제기하지 않을 것임을 서약합니다.
B9: 1. 관계 공무원에게 직접 또는 간접적인 사례(謝禮), 증여, 금품·향응을 제공하지 않을
B10: =" 것이며, 이를 위반하면 ｢" & IF(LEFT(데이터입력!C11,1)="공","지방계약법 시행령｣ 제92조 제1항 제10호에 따른 부정당","국가계약법 시행령｣ 제76조 제1항 제10호에 따른 부정당") -> 것이며, 이를 위반하면 ｢지방계약법 시행령｣ 제92조 제1항 제10호에 따른 부정당
B11: 업자의 입찰참가자격 제한 처분을 받겠습니다.
B13: 2. 특정인의 낙찰을 위한 담합 등 입찰(견적)의 자유경쟁을 방해하는 행위나 불공정한
B14: =" 행위 시 에는 ｢" & IF(LEFT(데이터입력!C11,1)="공","지방계약법 시행령｣ 제92조 제1항 제7호에 따른 부정당업자의 입찰","국가계약법 시행령｣ 제76조 제1항 제7호에 따른 부정당업자의 입찰") -> 행위 시 에는 ｢지방계약법 시행령｣ 제92조 제1항 제7호에 따른 부정당업자의 입찰
B15: 참가자격 제한 처분을 받겠습니다.
B17: 3. 공정한 직무수행을 방해하는 알선·청탁을 통하여 입찰(견적) 또는 계약과 관련된
B18: 특정 정보의 제공을 요구하거나 받는 행위를 하지 않겠습니다.
A23: =데이터입력!C26 -> 2016-10-16
B26: 서약자 : | C26: =데이터입력!C18 -> ○○건설㈜ | F26: 대 표 : | H26: =데이터입력!E18 & " (인)" -> ○○○ (인)
B30: =IF(RIGHT(데이터입력!$C$10,2)="학교",데이터입력!$C$10 & "장 귀하",IF(RIGHT(데이터입력!$C$10,3)="교육청",데이터입력!$C$10 & "교육감 귀하",IF(RIGHT(데이터입력!$C$10,3)="지원청",데이터입력!$C$10 & "교육장 귀하",데이터입력!$C$10 & "장 귀하"))) -> 서울○○초등학교장 귀하 | C30: =IF(RIGHT(데이터입력!$C$10,2)="학교",데이터입력!$C$10 & "장 귀하",IF(RIGHT(데이터입력!$C$10,3)="교육청",데이터입력!$C$10 & "교육감 귀하",IF(RIGHT(데이터입력!$C$10,3)="지원청",데이터입력!$C$10 & "교육장 귀하",데이터입력!$C$10 & "장 귀하"))) -> 서울○○초등학교장 귀하 | D30: =IF(RIGHT(데이터입력!$C$10,2)="학교",데이터입력!$C$10 & "장 귀하",IF(RIGHT(데이터입력!$C$10,3)="교육청",데이터입력!$C$10 & "교육감 귀하",IF(RIGHT(데이터입력!$C$10,3)="지원청",데이터입력!$C$10 & "교육장 귀하",데이터입력!$C$10 & "장 귀하"))) -> 서울○○초등학교장 귀하 | E30: =IF(RIGHT(데이터입력!$C$10,2)="학교",데이터입력!$C$10 & "장 귀하",IF(RIGHT(데이터입력!$C$10,3)="교육청",데이터입력!$C$10 & "교육감 귀하",IF(RIGHT(데이터입력!$C$10,3)="지원청",데이터입력!$C$10 & "교육장 귀하",데이터입력!$C$10 & "장 귀하"))) -> 서울○○초등학교장 귀하 | F30: =IF(RIGHT(데이터입력!$C$10,2)="학교",데이터입력!$C$10 & "장 귀하",IF(RIGHT(데이터입력!$C$10,3)="교육청",데이터입력!$C$10 & "교육감 귀하",IF(RIGHT(데이터입력!$C$10,3)="지원청",데이터입력!$C$10 & "교육장 귀하",데이터입력!$C$10 & "장 귀하"))) -> 서울○○초등학교장 귀하 | G30: =IF(RIGHT(데이터입력!$C$10,2)="학교",데이터입력!$C$10 & "장 귀하",IF(RIGHT(데이터입력!$C$10,3)="교육청",데이터입력!$C$10 & "교육감 귀하",IF(RIGHT(데이터입력!$C$10,3)="지원청",데이터입력!$C$10 & "교육장 귀하",데이터입력!$C$10 & "장 귀하"))) -> 서울○○초등학교장 귀하 | H30: =IF(RIGHT(데이터입력!$C$10,2)="학교",데이터입력!$C$10 & "장 귀하",IF(RIGHT(데이터입력!$C$10,3)="교육청",데이터입력!$C$10 & "교육감 귀하",IF(RIGHT(데이터입력!$C$10,3)="지원청",데이터입력!$C$10 & "교육장 귀하",데이터입력!$C$10 & "장 귀하"))) -> 서울○○초등학교장 귀하 | I30: =IF(RIGHT(데이터입력!$C$10,2)="학교",데이터입력!$C$10 & "장 귀하",IF(RIGHT(데이터입력!$C$10,3)="교육청",데이터입력!$C$10 & "교육감 귀하",IF(RIGHT(데이터입력!$C$10,3)="지원청",데이터입력!$C$10 & "교육장 귀하",데이터입력!$C$10 & "장 귀하"))) -> 서울○○초등학교장 귀하 | J30: =IF(RIGHT(데이터입력!$C$10,2)="학교",데이터입력!$C$10 & "장 귀하",IF(RIGHT(데이터입력!$C$10,3)="교육청",데이터입력!$C$10 & "교육감 귀하",IF(RIGHT(데이터입력!$C$10,3)="지원청",데이터입력!$C$10 & "교육장 귀하",데이터입력!$C$10 & "장 귀하"))) -> 서울○○초등학교장 귀하

Sheet 수의계약 각서
C2: 각 서
N3: 데이터입력시트로
C4: 업체명 | D4: =데이터입력!C18 -> ○○건설㈜ | F4: 소재지 | G4: =데이터입력!E19 -> 서울시 00구 00로 00길 000
C5: 대표자 | D5: =데이터입력!E18 -> ○○○ | F5: 업종(등록) | G5: =데이터입력!E20 -> 시설물유지관리
C7: =" 상기 본인(법인)은 귀 기관과 수의계약을 체결함에 있어서 붙임 결격사유 중" -> 상기 본인(법인)은 귀 기관과 수의계약을 체결함에 있어서 붙임 결격사유 중
C8: 어느 사유에도 해당되지 않으며, 차후에 이러한 사실이 발견된 경우 계약의 해지
C9: (해제) 및 부정당업자의 제재처분을 받아도 하등의 이유를 제기하지 않겠습니다.
E10: <수의계약 결격사유>
C11: ① 견적서 제출 마감일 현재 부도·파산·해산·영업정지 등이 확정된 경우
C12: ② 입찰참가자격 제한기간 중에 있는 자
C13: ③ 견적서 제출 마감일을 기준으로 시행령 제92조 또는 다른 법령에 따라 부실이행, 담합
C14: 행위, 입찰․계약 서류의 허위․위조 제출, 입찰·낙찰·계약이행 관련 뇌물 제공으로 부정
C15: 당업자 제재 처분을 받고 그 종료일로부터 6개월이 지나지 아니한 자
C16: ④ 공사 또는 기술용역의 경우 기술자 보유현황이 관련법령에 따른 업종등록 기준에 미달
C17: 하는 자
C18: ※ 기술자보유현황의 심사는「낙찰자결정기준」제2장 시설공사 적격심사 세부기준 <별지
C19: 2>의 그밖에 해당공사 수행능력상 결격여부, 제3장 기술용역 적격심사 세부기준 <별표>의
C20: 기술인력 평가방법을 준용한다. 이때 ‘입찰공고일’은 ‘안내공고일’로 ‘적격심사서류
C21: 제출마감일’은 ‘견적서 제출마감일’로 본다.
C22: ⑤ 견적서 제출 마감일 기준 최근 3개월 이내에 해당 지방자치단체의 입찰․계약 및 그 이행
C23: 과 관련하여 10일 이상 지연배상금 부과, 정당한 이행명령 거부, 불법 하도급, 5회 이상
C24: 하자보수 또는 물의를 일으키는 등 신용이 떨어져 계약 체결이 공란하다고 판단되는 자
C25: ⑥ 견적서 제출 마감일 기준 최근 3개월 이내에 해당 지방자치단체와의 계약 및 그 이행과
C26: 관련하여 정당한 이유 없이 계약에 응하지 아니하거나 포기서를 제출한 사실이 있는 자
C27: ※ 정당한 이유 없이 계약을 체결하지 아니하는 경우는 시행령 제92조 제1항 제6호에
C28: 따른 입찰참가자격 제한에는 해당되지 아니하나 수의계약 결격사유에 해당됨
C29: ⑦ 수의계약 체결일 현재 법 제33조에 해당하는 자
C30: 1. 지방자치단체의 장 또는 지방의회의원의 배우자인 사업자(법인은 대표자)
C31: 2. 지방자치단체의 장 또는 지방의회의원(배우자 포함)의 직계 존·비속인 사업자
C32: 3. 지방자치단체의 장 또는 지방의회의원이 자본금 총액의 50%이상을 소유한 자
C33: 4. 지방자치단체의 장 또는 지방의회의원 가족(배우자, 직계존·비속)의 합산금액이 자본금
C34: 총액의 50% 이상을 소유한 사업자
C35: 5. 지방자치단체의 장 또는 지방의회의원 소유업체의 계열회사 등
C36: ⑧ 발주기관이 제한한 자격요건 등을 충족하지 아니한 자
C37: ⑨ 그밖에 계약담당자가 계약이행능력이 없다고 판단되는 명백한 증거가 있는 자
C38: ⑩ 재난복구공사(용역)의 경우 결격여부 심사일 현재 계약금액 5천만원 이상 해당 업종 관급
C39: 공사 또는 계약금액 2천만원 이상 관급용역이 3건 이상인 자
C40: (단, 제3절의 “1”에 따른 2인 이상 견적서 제출 수의계약에 한한다)
C42: =데이터입력!C26 -> 2016-10-16
C43: 업 체 명 : | E43: =데이터입력!C18 -> ○○건설㈜ | F43: 대 표 자 : | H43: =데이터입력!E18 & " (인)" -> ○○○ (인)
C45: =IF(RIGHT(데이터입력!$C$10,2)="학교",데이터입력!$C$10 & "장 귀하",IF(RIGHT(데이터입력!$C$10,3)="교육청",데이터입력!$C$10 & "교육감 귀하",IF(RIGHT(데이터입력!$C$10,3)="지원청",데이터입력!$C$10 & "교육장 귀하",데이터입력!$C$10 & "장 귀하"))) -> 서울○○초등학교장 귀하 | D45: =IF(RIGHT(데이터입력!$C$10,2)="학교",데이터입력!$C$10 & "장 귀하",IF(RIGHT(데이터입력!$C$10,3)="교육청",데이터입력!$C$10 & "교육감 귀하",IF(RIGHT(데이터입력!$C$10,3)="지원청",데이터입력!$C$10 & "교육장 귀하",데이터입력!$C$10 & "장 귀하"))) -> 서울○○초등학교장 귀하 | E45: =IF(RIGHT(데이터입력!$C$10,2)="학교",데이터입력!$C$10 & "장 귀하",IF(RIGHT(데이터입력!$C$10,3)="교육청",데이터입력!$C$10 & "교육감 귀하",IF(RIGHT(데이터입력!$C$10,3)="지원청",데이터입력!$C$10 & "교육장 귀하",데이터입력!$C$10 & "장 귀하"))) -> 서울○○초등학교장 귀하 | F45: =IF(RIGHT(데이터입력!$C$10,2)="학교",데이터입력!$C$10 & "장 귀하",IF(RIGHT(데이터입력!$C$10,3)="교육청",데이터입력!$C$10 & "교육감 귀하",IF(RIGHT(데이터입력!$C$10,3)="지원청",데이터입력!$C$10 & "교육장 귀하",데이터입력!$C$10 & "장 귀하"))) -> 서울○○초등학교장 귀하 | G45: =IF(RIGHT(데이터입력!$C$10,2)="학교",데이터입력!$C$10 & "장 귀하",IF(RIGHT(데이터입력!$C$10,3)="교육청",데이터입력!$C$10 & "교육감 귀하",IF(RIGHT(데이터입력!$C$10,3)="지원청",데이터입력!$C$10 & "교육장 귀하",데이터입력!$C$10 & "장 귀하"))) -> 서울○○초등학교장 귀하 | H45: =IF(RIGHT(데이터입력!$C$10,2)="학교",데이터입력!$C$10 & "장 귀하",IF(RIGHT(데이터입력!$C$10,3)="교육청",데이터입력!$C$10 & "교육감 귀하",IF(RIGHT(데이터입력!$C$10,3)="지원청",데이터입력!$C$10 & "교육장 귀하",데이터입력!$C$10 & "장 귀하"))) -> 서울○○초등학교장 귀하 | I45: =IF(RIGHT(데이터입력!$C$10,2)="학교",데이터입력!$C$10 & "장 귀하",IF(RIGHT(데이터입력!$C$10,3)="교육청",데이터입력!$C$10 & "교육감 귀하",IF(RIGHT(데이터입력!$C$10,3)="지원청",데이터입력!$C$10 & "교육장 귀하",데이터입력!$C$10 & "장 귀하"))) -> 서울○○초등학교장 귀하 | J45: =IF(RIGHT(데이터입력!$C$10,2)="학교",데이터입력!$C$10 & "장 귀하",IF(RIGHT(데이터입력!$C$10,3)="교육청",데이터입력!$C$10 & "교육감 귀하",IF(RIGHT(데이터입력!$C$10,3)="지원청",데이터입력!$C$10 & "교육장 귀하",데이터입력!$C$10 & "장 귀하"))) -> 서울○○초등학교장 귀하 | K45: =IF(RIGHT(데이터입력!$C$10,2)="학교",데이터입력!$C$10 & "장 귀하",IF(RIGHT(데이터입력!$C$10,3)="교육청",데이터입력!$C$10 & "교육감 귀하",IF(RIGHT(데이터입력!$C$10,3)="지원청",데이터입력!$C$10 & "교육장 귀하",데이터입력!$C$10 & "장 귀하"))) -> 서울○○초등학교장 귀하

Sheet 착공계,공정표,대리인계(간이)
A2: 착공신고서, 공사예정공정표, 현장대리인계
B3: ○ 착공신고서 | Z3: 데이터입력시트로
C4: 1. 공 사 명 | F4: : | G4: =데이터입력!C9 -> ○○초 돌봄교실 설치공사
C5: 2. 계약금액 | F5: : | G5: =TEXT(데이터입력!C25,"금 #,##0 원(금 "&NUMBERSTRING(데이터입력!C25,1)&" 원정)") -> 금 123,456,000 원(금 일억이천삼백사십오만육천 원정)
C6: 3. 계약일자 | F6: : | G6: =데이터입력!C26 -> 2016-10-16
C7: 4. 착공일자 | F7: : | G7: =데이터입력!C28 -> 2016-10-20
C8: 5. 준공예정일 | F8: : | G8: =데이터입력!C29 -> 2016-11-18
B10: ○ 공사예정공정표
B11: 공 정 표
B12: 일정 공정 | G12: =MONTH(데이터입력!C27) -> 10 | H12: =IF(H13=1,IF($G$12=12,1,$G$12+1),"") ->  | I12: =IF(I13=1,IF($G$12=12,1,$G$12+1),"") ->  | S12: 11
G13: =DAY(데이터입력!C27) -> 20 | H13: =IF(OR($G$12=1,$G$12=3,$G$12=5,$G$12=7,$G$12=8,$G$12=10,$G$12=12),IF(G13=31,1,G13+1),IF(OR($G$12=4,$G$12=6,$G$12=9,$G$12=11),IF(G13=30,1,G13+1),IF($G$12=2,IF(G13=28,1,G13+1)))) -> 21 | I13: =IF(OR($G$12=1,$G$12=3,$G$12=5,$G$12=7,$G$12=8,$G$12=10,$G$12=12),IF(H13=31,1,H13+1),IF(OR($G$12=4,$G$12=6,$G$12=9,$G$12=11),IF(H13=30,1,H13+1),IF($G$12=2,IF(H13=28,1,H13+1)))) -> 22 | J13: 23 | K13: 24 | L13: 25 | M13: 26 | N13: 27 | O13: 28 | P13: 29 | Q13: 30 | R13: 31 | S13: 1 | T13: 2 | U13: 3 | V13: 4 | W13: 5
B14: 지장물 철거 | G14: ====
B15: 터파기 | H15: ==== | I15: ==== | J15: ====
B16: 콘크리트 타설 | J16: ==== | K16: ====
B17: 콘크리트양생 | L17: ==== | M17: ==== | N17: ====
B18: 뒷정리 | O18: ==== | P18: ==== | Q18: ====
B22: ○ 현장대리인계
C23: ·주 소 | E23: : | F23: =데이터입력!E19 -> 서울시 00구 00로 00길 000
C24: ·성 명 | E24: : | F24: =데이터입력!C22 -> ○○○ | L24: ·생년월일 : | P24: 1900-01-01
C25: ·기술면허종별 | G25: : | L25: ·기술면허의 번호 | R25: 제 호
D27: 위와 같이 (착공, 공사예정공정표, 현장대리인)을 신고합니다.
B29: =데이터입력!C28 -> 2016-10-20
G31: 업 체 명 | K31: : | L31: =데이터입력!C18 -> ○○건설㈜
G32: 주소 | K32: : | L32: =데이터입력!E19 -> 서울시 00구 00로 00길 000
G33: 대표자 | K33: : | L33: =데이터입력!E18 & " (인)" -> ○○○ (인)
B36: =IF(RIGHT(데이터입력!$C$10,2)="학교",데이터입력!$C$10 & "장 귀하",IF(RIGHT(데이터입력!$C$10,3)="교육청",데이터입력!$C$10 & "교육감 귀하",IF(RIGHT(데이터입력!$C$10,3)="지원청",데이터입력!$C$10 & "교육장 귀하",데이터입력!$C$10 & "장 귀하"))) -> 서울○○초등학교장 귀하 | C36: =IF(RIGHT(데이터입력!$C$10,2)="학교",데이터입력!$C$10 & "장 귀하",IF(RIGHT(데이터입력!$C$10,3)="교육청",데이터입력!$C$10 & "교육감 귀하",IF(RIGHT(데이터입력!$C$10,3)="지원청",데이터입력!$C$10 & "교육장 귀하",데이터입력!$C$10 & "장 귀하"))) -> 서울○○초등학교장 귀하 | D36: =IF(RIGHT(데이터입력!$C$10,2)="학교",데이터입력!$C$10 & "장 귀하",IF(RIGHT(데이터입력!$C$10,3)="교육청",데이터입력!$C$10 & "교육감 귀하",IF(RIGHT(데이터입력!$C$10,3)="지원청",데이터입력!$C$10 & "교육장 귀하",데이터입력!$C$10 & "장 귀하"))) -> 서울○○초등학교장 귀하 | E36: =IF(RIGHT(데이터입력!$C$10,2)="학교",데이터입력!$C$10 & "장 귀하",IF(RIGHT(데이터입력!$C$10,3)="교육청",데이터입력!$C$10 & "교육감 귀하",IF(RIGHT(데이터입력!$C$10,3)="지원청",데이터입력!$C$10 & "교육장 귀하",데이터입력!$C$10 & "장 귀하"))) -> 서울○○초등학교장 귀하 | F36: =IF(RIGHT(데이터입력!$C$10,2)="학교",데이터입력!$C$10 & "장 귀하",IF(RIGHT(데이터입력!$C$10,3)="교육청",데이터입력!$C$10 & "교육감 귀하",IF(RIGHT(데이터입력!$C$10,3)="지원청",데이터입력!$C$10 & "교육장 귀하",데이터입력!$C$10 & "장 귀하"))) -> 서울○○초등학교장 귀하 | G36: =IF(RIGHT(데이터입력!$C$10,2)="학교",데이터입력!$C$10 & "장 귀하",IF(RIGHT(데이터입력!$C$10,3)="교육청",데이터입력!$C$10 & "교육감 귀하",IF(RIGHT(데이터입력!$C$10,3)="지원청",데이터입력!$C$10 & "교육장 귀하",데이터입력!$C$10 & "장 귀하"))) -> 서울○○초등학교장 귀하 | H36: =IF(RIGHT(데이터입력!$C$10,2)="학교",데이터입력!$C$10 & "장 귀하",IF(RIGHT(데이터입력!$C$10,3)="교육청",데이터입력!$C$10 & "교육감 귀하",IF(RIGHT(데이터입력!$C$10,3)="지원청",데이터입력!$C$10 & "교육장 귀하",데이터입력!$C$10 & "장 귀하"))) -> 서울○○초등학교장 귀하 | I36: =IF(RIGHT(데이터입력!$C$10,2)="학교",데이터입력!$C$10 & "장 귀하",IF(RIGHT(데이터입력!$C$10,3)="교육청",데이터입력!$C$10 & "교육감 귀하",IF(RIGHT(데이터입력!$C$10,3)="지원청",데이터입력!$C$10 & "교육장 귀하",데이터입력!$C$10 & "장 귀하"))) -> 서울○○초등학교장 귀하 | J36: =IF(RIGHT(데이터입력!$C$10,2)="학교",데이터입력!$C$10 & "장 귀하",IF(RIGHT(데이터입력!$C$10,3)="교육청",데이터입력!$C$10 & "교육감 귀하",IF(RIGHT(데이터입력!$C$10,3)="지원청",데이터입력!$C$10 & "교육장 귀하",데이터입력!$C$10 & "장 귀하"))) -> 서울○○초등학교장 귀하 | K36: =IF(RIGHT(데이터입력!$C$10,2)="학교",데이터입력!$C$10 & "장 귀하",IF(RIGHT(데이터입력!$C$10,3)="교육청",데이터입력!$C$10 & "교육감 귀하",IF(RIGHT(데이터입력!$C$10,3)="지원청",데이터입력!$C$10 & "교육장 귀하",데이터입력!$C$10 & "장 귀하"))) -> 서울○○초등학교장 귀하 | L36: =IF(RIGHT(데이터입력!$C$10,2)="학교",데이터입력!$C$10 & "장 귀하",IF(RIGHT(데이터입력!$C$10,3)="교육청",데이터입력!$C$10 & "교육감 귀하",IF(RIGHT(데이터입력!$C$10,3)="지원청",데이터입력!$C$10 & "교육장 귀하",데이터입력!$C$10 & "장 귀하"))) -> 서울○○초등학교장 귀하 | M36: =IF(RIGHT(데이터입력!$C$10,2)="학교",데이터입력!$C$10 & "장 귀하",IF(RIGHT(데이터입력!$C$10,3)="교육청",데이터입력!$C$10 & "교육감 귀하",IF(RIGHT(데이터입력!$C$10,3)="지원청",데이터입력!$C$10 & "교육장 귀하",데이터입력!$C$10 & "장 귀하"))) -> 서울○○초등학교장 귀하 | N36: =IF(RIGHT(데이터입력!$C$10,2)="학교",데이터입력!$C$10 & "장 귀하",IF(RIGHT(데이터입력!$C$10,3)="교육청",데이터입력!$C$10 & "교육감 귀하",IF(RIGHT(데이터입력!$C$10,3)="지원청",데이터입력!$C$10 & "교육장 귀하",데이터입력!$C$10 & "장 귀하"))) -> 서울○○초등학교장 귀하 | O36: =IF(RIGHT(데이터입력!$C$10,2)="학교",데이터입력!$C$10 & "장 귀하",IF(RIGHT(데이터입력!$C$10,3)="교육청",데이터입력!$C$10 & "교육감 귀하",IF(RIGHT(데이터입력!$C$10,3)="지원청",데이터입력!$C$10 & "교육장 귀하",데이터입력!$C$10 & "장 귀하"))) -> 서울○○초등학교장 귀하 | P36: =IF(RIGHT(데이터입력!$C$10,2)="학교",데이터입력!$C$10 & "장 귀하",IF(RIGHT(데이터입력!$C$10,3)="교육청",데이터입력!$C$10 & "교육감 귀하",IF(RIGHT(데이터입력!$C$10,3)="지원청",데이터입력!$C$10 & "교육장 귀하",데이터입력!$C$10 & "장 귀하"))) -> 서울○○초등학교장 귀하 | Q36: =IF(RIGHT(데이터입력!$C$10,2)="학교",데이터입력!$C$10 & "장 귀하",IF(RIGHT(데이터입력!$C$10,3)="교육청",데이터입력!$C$10 & "교육감 귀하",IF(RIGHT(데이터입력!$C$10,3)="지원청",데이터입력!$C$10 & "교육장 귀하",데이터입력!$C$10 & "장 귀하"))) -> 서울○○초등학교장 귀하 | R36: =IF(RIGHT(데이터입력!$C$10,2)="학교",데이터입력!$C$10 & "장 귀하",IF(RIGHT(데이터입력!$C$10,3)="교육청",데이터입력!$C$10 & "교육감 귀하",IF(RIGHT(데이터입력!$C$10,3)="지원청",데이터입력!$C$10 & "교육장 귀하",데이터입력!$C$10 & "장 귀하"))) -> 서울○○초등학교장 귀하 | S36: =IF(RIGHT(데이터입력!$C$10,2)="학교",데이터입력!$C$10 & "장 귀하",IF(RIGHT(데이터입력!$C$10,3)="교육청",데이터입력!$C$10 & "교육감 귀하",IF(RIGHT(데이터입력!$C$10,3)="지원청",데이터입력!$C$10 & "교육장 귀하",데이터입력!$C$10 & "장 귀하"))) -> 서울○○초등학교장 귀하 | T36: =IF(RIGHT(데이터입력!$C$10,2)="학교",데이터입력!$C$10 & "장 귀하",IF(RIGHT(데이터입력!$C$10,3)="교육청",데이터입력!$C$10 & "교육감 귀하",IF(RIGHT(데이터입력!$C$10,3)="지원청",데이터입력!$C$10 & "교육장 귀하",데이터입력!$C$10 & "장 귀하"))) -> 서울○○초등학교장 귀하 | U36: =IF(RIGHT(데이터입력!$C$10,2)="학교",데이터입력!$C$10 & "장 귀하",IF(RIGHT(데이터입력!$C$10,3)="교육청",데이터입력!$C$10 & "교육감 귀하",IF(RIGHT(데이터입력!$C$10,3)="지원청",데이터입력!$C$10 & "교육장 귀하",데이터입력!$C$10 & "장 귀하"))) -> 서울○○초등학교장 귀하 | V36: =IF(RIGHT(데이터입력!$C$10,2)="학교",데이터입력!$C$10 & "장 귀하",IF(RIGHT(데이터입력!$C$10,3)="교육청",데이터입력!$C$10 & "교육감 귀하",IF(RIGHT(데이터입력!$C$10,3)="지원청",데이터입력!$C$10 & "교육장 귀하",데이터입력!$C$10 & "장 귀하"))) -> 서울○○초등학교장 귀하 | W36: =IF(RIGHT(데이터입력!$C$10,2)="학교",데이터입력!$C$10 & "장 귀하",IF(RIGHT(데이터입력!$C$10,3)="교육청",데이터입력!$C$10 & "교육감 귀하",IF(RIGHT(데이터입력!$C$10,3)="지원청",데이터입력!$C$10 & "교육장 귀하",데이터입력!$C$10 & "장 귀하"))) -> 서울○○초등학교장 귀하 | X36: =IF(RIGHT(데이터입력!$C$10,2)="학교",데이터입력!$C$10 & "장 귀하",IF(RIGHT(데이터입력!$C$10,3)="교육청",데이터입력!$C$10 & "교육감 귀하",IF(RIGHT(데이터입력!$C$10,3)="지원청",데이터입력!$C$10 & "교육장 귀하",데이터입력!$C$10 & "장 귀하"))) -> 서울○○초등학교장 귀하

Sheet 착공계
B2: 착 공 신 고 서
R3: 데이터입력시트로
B4: 1. 공 사 명 : | C4: =데이터입력!C9 -> ○○초 돌봄교실 설치공사
B6: 2. 계 약 금 액 : | C6: =TEXT(데이터입력!C25,"금 #,##0 원(금 "&NUMBERSTRING(데이터입력!C25,1)&" 원정)") -> 금 123,456,000 원(금 일억이천삼백사십오만육천 원정)
B8: 3. 계약연월일 : | C8: =데이터입력!C26 -> 2016-10-16
B10: 4. 착공연월일 : | C10: =데이터입력!C28 -> 2016-10-20
B12: 5. 준 공 기 한 : | C12: =데이터입력!C29 -> 2016-11-18
B14: 붙 임 : | C14: 1. 현장대리인계(재직증명서, 건설기술경력증수첩 사본)
C15: 2. 공사예정공정표
C16: 3. 공사도급내역서
B19: 상기와 같이 공사를 착공하였기에 착공계를 제출합니다.
B21: =데이터입력!C28 -> 2016-10-20
C23: 회 사 명 : | E23: =데이터입력!C18 -> ○○건설㈜
C24: 사업자등록번호 : | E24: =데이터입력!C21 -> 1234567890
C25: 주 소 : | E25: =데이터입력!E19 -> 서울시 00구 00로 00길 000
C26: 대 표 자 : | E26: =데이터입력!E18 & " (인)" -> ○○○ (인)
B29: =IF(RIGHT(데이터입력!$C$10,2)="학교",데이터입력!$C$10 & "장 귀하",IF(RIGHT(데이터입력!$C$10,3)="교육청",데이터입력!$C$10 & "교육감 귀하",IF(RIGHT(데이터입력!$C$10,3)="지원청",데이터입력!$C$10 & "교육장 귀하",데이터입력!$C$10 & "장 귀하"))) -> 서울○○초등학교장 귀하 | C29: =IF(RIGHT(데이터입력!$C$10,2)="학교",데이터입력!$C$10 & "장 귀하",IF(RIGHT(데이터입력!$C$10,3)="교육청",데이터입력!$C$10 & "교육감 귀하",IF(RIGHT(데이터입력!$C$10,3)="지원청",데이터입력!$C$10 & "교육장 귀하",데이터입력!$C$10 & "장 귀하"))) -> 서울○○초등학교장 귀하 | D29: =IF(RIGHT(데이터입력!$C$10,2)="학교",데이터입력!$C$10 & "장 귀하",IF(RIGHT(데이터입력!$C$10,3)="교육청",데이터입력!$C$10 & "교육감 귀하",IF(RIGHT(데이터입력!$C$10,3)="지원청",데이터입력!$C$10 & "교육장 귀하",데이터입력!$C$10 & "장 귀하"))) -> 서울○○초등학교장 귀하 | E29: =IF(RIGHT(데이터입력!$C$10,2)="학교",데이터입력!$C$10 & "장 귀하",IF(RIGHT(데이터입력!$C$10,3)="교육청",데이터입력!$C$10 & "교육감 귀하",IF(RIGHT(데이터입력!$C$10,3)="지원청",데이터입력!$C$10 & "교육장 귀하",데이터입력!$C$10 & "장 귀하"))) -> 서울○○초등학교장 귀하 | F29: =IF(RIGHT(데이터입력!$C$10,2)="학교",데이터입력!$C$10 & "장 귀하",IF(RIGHT(데이터입력!$C$10,3)="교육청",데이터입력!$C$10 & "교육감 귀하",IF(RIGHT(데이터입력!$C$10,3)="지원청",데이터입력!$C$10 & "교육장 귀하",데이터입력!$C$10 & "장 귀하"))) -> 서울○○초등학교장 귀하 | G29: =IF(RIGHT(데이터입력!$C$10,2)="학교",데이터입력!$C$10 & "장 귀하",IF(RIGHT(데이터입력!$C$10,3)="교육청",데이터입력!$C$10 & "교육감 귀하",IF(RIGHT(데이터입력!$C$10,3)="지원청",데이터입력!$C$10 & "교육장 귀하",데이터입력!$C$10 & "장 귀하"))) -> 서울○○초등학교장 귀하 | H29: =IF(RIGHT(데이터입력!$C$10,2)="학교",데이터입력!$C$10 & "장 귀하",IF(RIGHT(데이터입력!$C$10,3)="교육청",데이터입력!$C$10 & "교육감 귀하",IF(RIGHT(데이터입력!$C$10,3)="지원청",데이터입력!$C$10 & "교육장 귀하",데이터입력!$C$10 & "장 귀하"))) -> 서울○○초등학교장 귀하 | I29: =IF(RIGHT(데이터입력!$C$10,2)="학교",데이터입력!$C$10 & "장 귀하",IF(RIGHT(데이터입력!$C$10,3)="교육청",데이터입력!$C$10 & "교육감 귀하",IF(RIGHT(데이터입력!$C$10,3)="지원청",데이터입력!$C$10 & "교육장 귀하",데이터입력!$C$10 & "장 귀하"))) -> 서울○○초등학교장 귀하 | J29: =IF(RIGHT(데이터입력!$C$10,2)="학교",데이터입력!$C$10 & "장 귀하",IF(RIGHT(데이터입력!$C$10,3)="교육청",데이터입력!$C$10 & "교육감 귀하",IF(RIGHT(데이터입력!$C$10,3)="지원청",데이터입력!$C$10 & "교육장 귀하",데이터입력!$C$10 & "장 귀하"))) -> 서울○○초등학교장 귀하 | K29: =IF(RIGHT(데이터입력!$C$10,2)="학교",데이터입력!$C$10 & "장 귀하",IF(RIGHT(데이터입력!$C$10,3)="교육청",데이터입력!$C$10 & "교육감 귀하",IF(RIGHT(데이터입력!$C$10,3)="지원청",데이터입력!$C$10 & "교육장 귀하",데이터입력!$C$10 & "장 귀하"))) -> 서울○○초등학교장 귀하 | L29: =IF(RIGHT(데이터입력!$C$10,2)="학교",데이터입력!$C$10 & "장 귀하",IF(RIGHT(데이터입력!$C$10,3)="교육청",데이터입력!$C$10 & "교육감 귀하",IF(RIGHT(데이터입력!$C$10,3)="지원청",데이터입력!$C$10 & "교육장 귀하",데이터입력!$C$10 & "장 귀하"))) -> 서울○○초등학교장 귀하 | M29: =IF(RIGHT(데이터입력!$C$10,2)="학교",데이터입력!$C$10 & "장 귀하",IF(RIGHT(데이터입력!$C$10,3)="교육청",데이터입력!$C$10 & "교육감 귀하",IF(RIGHT(데이터입력!$C$10,3)="지원청",데이터입력!$C$10 & "교육장 귀하",데이터입력!$C$10 & "장 귀하"))) -> 서울○○초등학교장 귀하 | N29: =IF(RIGHT(데이터입력!$C$10,2)="학교",데이터입력!$C$10 & "장 귀하",IF(RIGHT(데이터입력!$C$10,3)="교육청",데이터입력!$C$10 & "교육감 귀하",IF(RIGHT(데이터입력!$C$10,3)="지원청",데이터입력!$C$10 & "교육장 귀하",데이터입력!$C$10 & "장 귀하"))) -> 서울○○초등학교장 귀하 | O29: =IF(RIGHT(데이터입력!$C$10,2)="학교",데이터입력!$C$10 & "장 귀하",IF(RIGHT(데이터입력!$C$10,3)="교육청",데이터입력!$C$10 & "교육감 귀하",IF(RIGHT(데이터입력!$C$10,3)="지원청",데이터입력!$C$10 & "교육장 귀하",데이터입력!$C$10 & "장 귀하"))) -> 서울○○초등학교장 귀하 | P29: =IF(RIGHT(데이터입력!$C$10,2)="학교",데이터입력!$C$10 & "장 귀하",IF(RIGHT(데이터입력!$C$10,3)="교육청",데이터입력!$C$10 & "교육감 귀하",IF(RIGHT(데이터입력!$C$10,3)="지원청",데이터입력!$C$10 & "교육장 귀하",데이터입력!$C$10 & "장 귀하"))) -> 서울○○초등학교장 귀하

Sheet 현장대리인계
B3: 현 장 대 리 인 계 | K3: 데이터입력시트로
B6: □ 공 사 명 : | D6: =데이터입력!C9 -> ○○초 돌봄교실 설치공사
B8: □ 공 사 기 간 : | D8: =데이터입력!C27 -> 2016-10-20 | F8: ~ | G8: =데이터입력!C29 -> 2016-11-18
B11: 구 분 | C11: 종 별 | D11: 기술경력 | E11: 면허번호 | G11: 생년월일 | H11: 성 명 | I11: 비 고
D12: (등급)
B13: 현장대리인 | H13: =데이터입력!C22 -> ○○○
B15: 상기자를 공사의 현장대리인으로 정하여 종사하겠기에 현장대리인계를
B17: 제출합니다.
B19: 붙 임 : 건설기술자수첩 사본 1부
B23: =데이터입력!C28 -> 2016-10-20
C26: 주 소 : | D26: =데이터입력!E19 -> 서울시 00구 00로 00길 000
C27: 상 호 : | D27: =데이터입력!C18 -> ○○건설㈜
C28: 대표자 : | D28: =데이터입력!E18 & " (인)" -> ○○○ (인)
B31: =IF(RIGHT(데이터입력!$C$10,2)="학교",데이터입력!$C$10 & "장 귀하",IF(RIGHT(데이터입력!$C$10,3)="교육청",데이터입력!$C$10 & "교육감 귀하",IF(RIGHT(데이터입력!$C$10,3)="지원청",데이터입력!$C$10 & "교육장 귀하",데이터입력!$C$10 & "장 귀하"))) -> 서울○○초등학교장 귀하

Sheet 공정표
A2: 예 정 공 정 표
V3: 데이터입력시트로
B4: 1. 공 사 명 : | C4: =데이터입력!C9 -> ○○초 돌봄교실 설치공사
B6: 2. 계약금액 : | C6: =TEXT(데이터입력!C25,"금 #,##0 원(금 "&NUMBERSTRING(데이터입력!C25,1)&" 원정)") -> 금 123,456,000 원(금 일억이천삼백사십오만육천 원정)
B8: 3. 계약일자 : | C8: =데이터입력!C26 -> 2016-10-16
B10: 4. 착공일자 : | C10: =데이터입력!C28 -> 2016-10-20
B12: 5. 준공예정일 : | C12: =데이터입력!C29 -> 2016-11-18
B14: 공 정 표
B15: 일정 공정 | C15: =MONTH(데이터입력!C27) -> 10 | D15: =IF(D16=1,IF($C$15=12,1,$C$15+1),"") ->  | E15: =IF(E16=1,IF($C$15=12,1,$C$15+1),"") ->  | O15: 11
C16: =DAY(데이터입력!C28) -> 20 | D16: =IF(OR($C$15=1,$C$15=3,$C$15=5,$C$15=7,$C$15=8,$C$15=10,$C$15=12),IF(C16=31,1,C16+1),IF(OR($C$15=4,$C$15=6,$C$15=9,$C$15=11),IF(C16=30,1,C16+1),IF($C$15=2,IF(C16=28,1,C16+1)))) -> 21 | E16: =IF(OR($C$15=1,$C$15=3,$C$15=5,$C$15=7,$C$15=8,$C$15=10,$C$15=12),IF(D16=31,1,D16+1),IF(OR($C$15=4,$C$15=6,$C$15=9,$C$15=11),IF(D16=30,1,D16+1),IF($C$15=2,IF(D16=28,1,D16+1)))) -> 22 | F16: 23 | G16: 24 | H16: 25 | I16: 26 | J16: 27 | K16: 28 | L16: 29 | M16: 30 | N16: 31 | O16: 1 | P16: 2 | Q16: 3 | R16: 4 | S16: 5
B17: 지장물 철거 | C17: ====
B18: 터파기 | D18: ==== | E18: ==== | F18: ====
B19: 콘크리트 타설 | F19: ==== | G19: ====
B20: 콘크리트 양생 | H20: ==== | I20: ==== | J20: ====
B21: 뒷정리 | K21: ==== | L21: ==== | M21: ====
B25: =데이터입력!C28 -> 2016-10-20
C27: 업 체 명 | G27: : | H27: =데이터입력!C18 -> ○○건설㈜
C28: 사업자등록번호 | G28: : | H28: =데이터입력!C21 -> 1234567890
C29: 주소 | G29: : | H29: =데이터입력!E19 -> 서울시 00구 00로 00길 000
C30: 대표자 | G30: : | H30: =데이터입력!E18 & " (인)" -> ○○○ (인)
B33: =IF(RIGHT(데이터입력!$C$10,2)="학교",데이터입력!$C$10 & "장 귀하",IF(RIGHT(데이터입력!$C$10,3)="교육청",데이터입력!$C$10 & "교육감 귀하",IF(RIGHT(데이터입력!$C$10,3)="지원청",데이터입력!$C$10 & "교육장 귀하",데이터입력!$C$10 & "장 귀하"))) -> 서울○○초등학교장 귀하 | C33: =IF(RIGHT(데이터입력!$C$10,2)="학교",데이터입력!$C$10 & "장 귀하",IF(RIGHT(데이터입력!$C$10,3)="교육청",데이터입력!$C$10 & "교육감 귀하",IF(RIGHT(데이터입력!$C$10,3)="지원청",데이터입력!$C$10 & "교육장 귀하",데이터입력!$C$10 & "장 귀하"))) -> 서울○○초등학교장 귀하 | D33: =IF(RIGHT(데이터입력!$C$10,2)="학교",데이터입력!$C$10 & "장 귀하",IF(RIGHT(데이터입력!$C$10,3)="교육청",데이터입력!$C$10 & "교육감 귀하",IF(RIGHT(데이터입력!$C$10,3)="지원청",데이터입력!$C$10 & "교육장 귀하",데이터입력!$C$10 & "장 귀하"))) -> 서울○○초등학교장 귀하 | E33: =IF(RIGHT(데이터입력!$C$10,2)="학교",데이터입력!$C$10 & "장 귀하",IF(RIGHT(데이터입력!$C$10,3)="교육청",데이터입력!$C$10 & "교육감 귀하",IF(RIGHT(데이터입력!$C$10,3)="지원청",데이터입력!$C$10 & "교육장 귀하",데이터입력!$C$10 & "장 귀하"))) -> 서울○○초등학교장 귀하 | F33: =IF(RIGHT(데이터입력!$C$10,2)="학교",데이터입력!$C$10 & "장 귀하",IF(RIGHT(데이터입력!$C$10,3)="교육청",데이터입력!$C$10 & "교육감 귀하",IF(RIGHT(데이터입력!$C$10,3)="지원청",데이터입력!$C$10 & "교육장 귀하",데이터입력!$C$10 & "장 귀하"))) -> 서울○○초등학교장 귀하 | G33: =IF(RIGHT(데이터입력!$C$10,2)="학교",데이터입력!$C$10 & "장 귀하",IF(RIGHT(데이터입력!$C$10,3)="교육청",데이터입력!$C$10 & "교육감 귀하",IF(RIGHT(데이터입력!$C$10,3)="지원청",데이터입력!$C$10 & "교육장 귀하",데이터입력!$C$10 & "장 귀하"))) -> 서울○○초등학교장 귀하 | H33: =IF(RIGHT(데이터입력!$C$10,2)="학교",데이터입력!$C$10 & "장 귀하",IF(RIGHT(데이터입력!$C$10,3)="교육청",데이터입력!$C$10 & "교육감 귀하",IF(RIGHT(데이터입력!$C$10,3)="지원청",데이터입력!$C$10 & "교육장 귀하",데이터입력!$C$10 & "장 귀하"))) -> 서울○○초등학교장 귀하 | I33: =IF(RIGHT(데이터입력!$C$10,2)="학교",데이터입력!$C$10 & "장 귀하",IF(RIGHT(데이터입력!$C$10,3)="교육청",데이터입력!$C$10 & "교육감 귀하",IF(RIGHT(데이터입력!$C$10,3)="지원청",데이터입력!$C$10 & "교육장 귀하",데이터입력!$C$10 & "장 귀하"))) -> 서울○○초등학교장 귀하 | J33: =IF(RIGHT(데이터입력!$C$10,2)="학교",데이터입력!$C$10 & "장 귀하",IF(RIGHT(데이터입력!$C$10,3)="교육청",데이터입력!$C$10 & "교육감 귀하",IF(RIGHT(데이터입력!$C$10,3)="지원청",데이터입력!$C$10 & "교육장 귀하",데이터입력!$C$10 & "장 귀하"))) -> 서울○○초등학교장 귀하 | K33: =IF(RIGHT(데이터입력!$C$10,2)="학교",데이터입력!$C$10 & "장 귀하",IF(RIGHT(데이터입력!$C$10,3)="교육청",데이터입력!$C$10 & "교육감 귀하",IF(RIGHT(데이터입력!$C$10,3)="지원청",데이터입력!$C$10 & "교육장 귀하",데이터입력!$C$10 & "장 귀하"))) -> 서울○○초등학교장 귀하 | L33: =IF(RIGHT(데이터입력!$C$10,2)="학교",데이터입력!$C$10 & "장 귀하",IF(RIGHT(데이터입력!$C$10,3)="교육청",데이터입력!$C$10 & "교육감 귀하",IF(RIGHT(데이터입력!$C$10,3)="지원청",데이터입력!$C$10 & "교육장 귀하",데이터입력!$C$10 & "장 귀하"))) -> 서울○○초등학교장 귀하 | M33: =IF(RIGHT(데이터입력!$C$10,2)="학교",데이터입력!$C$10 & "장 귀하",IF(RIGHT(데이터입력!$C$10,3)="교육청",데이터입력!$C$10 & "교육감 귀하",IF(RIGHT(데이터입력!$C$10,3)="지원청",데이터입력!$C$10 & "교육장 귀하",데이터입력!$C$10 & "장 귀하"))) -> 서울○○초등학교장 귀하 | N33: =IF(RIGHT(데이터입력!$C$10,2)="학교",데이터입력!$C$10 & "장 귀하",IF(RIGHT(데이터입력!$C$10,3)="교육청",데이터입력!$C$10 & "교육감 귀하",IF(RIGHT(데이터입력!$C$10,3)="지원청",데이터입력!$C$10 & "교육장 귀하",데이터입력!$C$10 & "장 귀하"))) -> 서울○○초등학교장 귀하 | O33: =IF(RIGHT(데이터입력!$C$10,2)="학교",데이터입력!$C$10 & "장 귀하",IF(RIGHT(데이터입력!$C$10,3)="교육청",데이터입력!$C$10 & "교육감 귀하",IF(RIGHT(데이터입력!$C$10,3)="지원청",데이터입력!$C$10 & "교육장 귀하",데이터입력!$C$10 & "장 귀하"))) -> 서울○○초등학교장 귀하 | P33: =IF(RIGHT(데이터입력!$C$10,2)="학교",데이터입력!$C$10 & "장 귀하",IF(RIGHT(데이터입력!$C$10,3)="교육청",데이터입력!$C$10 & "교육감 귀하",IF(RIGHT(데이터입력!$C$10,3)="지원청",데이터입력!$C$10 & "교육장 귀하",데이터입력!$C$10 & "장 귀하"))) -> 서울○○초등학교장 귀하 | Q33: =IF(RIGHT(데이터입력!$C$10,2)="학교",데이터입력!$C$10 & "장 귀하",IF(RIGHT(데이터입력!$C$10,3)="교육청",데이터입력!$C$10 & "교육감 귀하",IF(RIGHT(데이터입력!$C$10,3)="지원청",데이터입력!$C$10 & "교육장 귀하",데이터입력!$C$10 & "장 귀하"))) -> 서울○○초등학교장 귀하 | R33: =IF(RIGHT(데이터입력!$C$10,2)="학교",데이터입력!$C$10 & "장 귀하",IF(RIGHT(데이터입력!$C$10,3)="교육청",데이터입력!$C$10 & "교육감 귀하",IF(RIGHT(데이터입력!$C$10,3)="지원청",데이터입력!$C$10 & "교육장 귀하",데이터입력!$C$10 & "장 귀하"))) -> 서울○○초등학교장 귀하 | S33: =IF(RIGHT(데이터입력!$C$10,2)="학교",데이터입력!$C$10 & "장 귀하",IF(RIGHT(데이터입력!$C$10,3)="교육청",데이터입력!$C$10 & "교육감 귀하",IF(RIGHT(데이터입력!$C$10,3)="지원청",데이터입력!$C$10 & "교육장 귀하",데이터입력!$C$10 & "장 귀하"))) -> 서울○○초등학교장 귀하 | T33: =IF(RIGHT(데이터입력!$C$10,2)="학교",데이터입력!$C$10 & "장 귀하",IF(RIGHT(데이터입력!$C$10,3)="교육청",데이터입력!$C$10 & "교육감 귀하",IF(RIGHT(데이터입력!$C$10,3)="지원청",데이터입력!$C$10 & "교육장 귀하",데이터입력!$C$10 & "장 귀하"))) -> 서울○○초등학교장 귀하

Sheet 직접시공계획서
A1: [별지 제22호의6서식] | AD1: (앞 쪽)
A2: 건설공사의 직접시공계획서
AJ3: 데이터입력시트로
A4: 공 사 명 | E4: =데이터입력!C9 -> ○○초 돌봄교실 설치공사
A5: ① | B5: 공 종 | E5: 공종: | G5: =데이터입력!C20 -> 건축공사 | J5: 세부공종: | M5: =데이터입력!E20 -> 시설물유지관리 | Q5: 현장소재지 | U5: =데이터입력!C10 -> 서울○○초등학교
A6: 발 주 자 | E6: 상호(기관명) : | M6: ■ 공공기관 | Q6: 대표자 | U6: =데이터입력!C13 -> ○○○ | X6: 주소 | AA6: =데이터입력!C14 -> 서울시 00구 00로 00길 000
E7: =데이터입력!C10 -> 서울○○초등학교 | M7: □ 민 간
A8: 수 급 인 | E8: 상 호 | H8: =데이터입력!C18 -> ○○건설㈜ | M8: 대 표 자 | Q8: =데이터입력!E18 -> ○○○ | U8: 영업소 소재지 | AA8: =데이터입력!E19 -> 서울시 00구 00로 00길 000
A10: 도급방법 | E10: ■ 단독도급 □ 공동도급(□ 공동이행방식 □ 분담이행방식 □ 주계약자관리방식)
A11: 계약성질 | E11: □ 장기계속공사 ■ 기타공사
A12: ② | B12: 계 약 일 | E12: =데이터입력!C26 -> 2016-10-16 | K12: ③ | L12: 착 공 일 | O12: =데이터입력!C28 -> 2016-10-20 | U12: ④ | V12: 준공예정일 | AA12: =데이터입력!C29 -> 2016-11-18
A13: ⑤ | B13: 도급금액 | F13: ="금 "&NUMBERSTRING(Q13,1)&"원" -> 금 사백삼십사만오천원 | Q13: =J26+Z26 -> 4345000
A14: 직 접 시 공 계 획 서
A15: 직 접 시 공 공 종 | Q15: 하 도 급 ( 예 정 ) 공 종
A16: ⑥ | B16: 세 부 공 종 | J16: 금 액 | Q16: ⑥ | R16: 세 부 공 종 | Z16: 금 액
A17: 1 | B17: 콘크리트 타설 | J17: 2000000 | Q17: =A17 -> 1 | Z17: 1000000
A18: 2 | J18: 0 | Q18: =A18 -> 2 | Z18: 0
A19: 3 | J19: 0 | Q19: 3 | Z19: 0
A20: 4 | J20: 0 | Q20: 4 | Z20: 0
A21: 소 계 | J21: =IF(SUM(J17:P20)=0,"",SUM(J17:P20)) -> 2000000 | Q21: 소 계 | Z21: =IF(SUM(Z17:AF20)=0,"",SUM(Z17:AF20)) -> 1000000
A22: ⑦ | B22: 경비(공과잡비) | J22: 100000 | Q22: ⑦ | R22: =B22 -> 경비(공과잡비) | Z22: 50000
A23: ⑧ | B23: 일반관리비 | J23: 200000 | Q23: ⑧ | R23: =B23 -> 일반관리비 | Z23: 100000
A24: ⑨ | B24: 이윤 | J24: 300000 | Q24: ⑨ | R24: 이윤 | Z24: 200000
A25: ⑩ | B25: 부가가치세 | J25: =SUM(J21:P24)*0.1 -> 260000 | Q25: ⑩ | R25: 부가가치세 | Z25: =SUM(Z21:AF24)*0.1 -> 135000
A26: ⑪ | B26: 직접시공 금액 합계 | J26: =SUM(J21:P25) -> 2860000 | Q26: ⑪ | R26: 하도급시공 금액 합계 | Z26: =SUM(Z21:AF25) -> 1485000
A28: 「건설산업기본법」 제28조의2의 규정에 의하여 건설공사의 직접시공계획서를 통보합니다
A30: =데이터입력!C28 -> 2016-10-20
E32: 수급인 | K32: 대표자 | O32: =데이터입력!E18 & " (서명 또는 인)" -> ○○○ (서명 또는 인)
A33: =IF(RIGHT(데이터입력!$C$10,2)="학교",데이터입력!$C$10 & "장 귀하",IF(RIGHT(데이터입력!$C$10,3)="교육청",데이터입력!$C$10 & "교육감 귀하",IF(RIGHT(데이터입력!$C$10,3)="지원청",데이터입력!$C$10 & "교육장 귀하",데이터입력!$C$10 & "장 귀하"))) -> 서울○○초등학교장 귀하 | B33: =IF(RIGHT(데이터입력!$C$10,2)="학교",데이터입력!$C$10 & "장 귀하",IF(RIGHT(데이터입력!$C$10,3)="교육청",데이터입력!$C$10 & "교육감 귀하",IF(RIGHT(데이터입력!$C$10,3)="지원청",데이터입력!$C$10 & "교육장 귀하",데이터입력!$C$10 & "장 귀하"))) -> 서울○○초등학교장 귀하 | C33: =IF(RIGHT(데이터입력!$C$10,2)="학교",데이터입력!$C$10 & "장 귀하",IF(RIGHT(데이터입력!$C$10,3)="교육청",데이터입력!$C$10 & "교육감 귀하",IF(RIGHT(데이터입력!$C$10,3)="지원청",데이터입력!$C$10 & "교육장 귀하",데이터입력!$C$10 & "장 귀하"))) -> 서울○○초등학교장 귀하 | D33: =IF(RIGHT(데이터입력!$C$10,2)="학교",데이터입력!$C$10 & "장 귀하",IF(RIGHT(데이터입력!$C$10,3)="교육청",데이터입력!$C$10 & "교육감 귀하",IF(RIGHT(데이터입력!$C$10,3)="지원청",데이터입력!$C$10 & "교육장 귀하",데이터입력!$C$10 & "장 귀하"))) -> 서울○○초등학교장 귀하 | E33: =IF(RIGHT(데이터입력!$C$10,2)="학교",데이터입력!$C$10 & "장 귀하",IF(RIGHT(데이터입력!$C$10,3)="교육청",데이터입력!$C$10 & "교육감 귀하",IF(RIGHT(데이터입력!$C$10,3)="지원청",데이터입력!$C$10 & "교육장 귀하",데이터입력!$C$10 & "장 귀하"))) -> 서울○○초등학교장 귀하 | F33: =IF(RIGHT(데이터입력!$C$10,2)="학교",데이터입력!$C$10 & "장 귀하",IF(RIGHT(데이터입력!$C$10,3)="교육청",데이터입력!$C$10 & "교육감 귀하",IF(RIGHT(데이터입력!$C$10,3)="지원청",데이터입력!$C$10 & "교육장 귀하",데이터입력!$C$10 & "장 귀하"))) -> 서울○○초등학교장 귀하 | G33: =IF(RIGHT(데이터입력!$C$10,2)="학교",데이터입력!$C$10 & "장 귀하",IF(RIGHT(데이터입력!$C$10,3)="교육청",데이터입력!$C$10 & "교육감 귀하",IF(RIGHT(데이터입력!$C$10,3)="지원청",데이터입력!$C$10 & "교육장 귀하",데이터입력!$C$10 & "장 귀하"))) -> 서울○○초등학교장 귀하 | H33: =IF(RIGHT(데이터입력!$C$10,2)="학교",데이터입력!$C$10 & "장 귀하",IF(RIGHT(데이터입력!$C$10,3)="교육청",데이터입력!$C$10 & "교육감 귀하",IF(RIGHT(데이터입력!$C$10,3)="지원청",데이터입력!$C$10 & "교육장 귀하",데이터입력!$C$10 & "장 귀하"))) -> 서울○○초등학교장 귀하 | I33: =IF(RIGHT(데이터입력!$C$10,2)="학교",데이터입력!$C$10 & "장 귀하",IF(RIGHT(데이터입력!$C$10,3)="교육청",데이터입력!$C$10 & "교육감 귀하",IF(RIGHT(데이터입력!$C$10,3)="지원청",데이터입력!$C$10 & "교육장 귀하",데이터입력!$C$10 & "장 귀하"))) -> 서울○○초등학교장 귀하 | J33: =IF(RIGHT(데이터입력!$C$10,2)="학교",데이터입력!$C$10 & "장 귀하",IF(RIGHT(데이터입력!$C$10,3)="교육청",데이터입력!$C$10 & "교육감 귀하",IF(RIGHT(데이터입력!$C$10,3)="지원청",데이터입력!$C$10 & "교육장 귀하",데이터입력!$C$10 & "장 귀하"))) -> 서울○○초등학교장 귀하 | K33: =IF(RIGHT(데이터입력!$C$10,2)="학교",데이터입력!$C$10 & "장 귀하",IF(RIGHT(데이터입력!$C$10,3)="교육청",데이터입력!$C$10 & "교육감 귀하",IF(RIGHT(데이터입력!$C$10,3)="지원청",데이터입력!$C$10 & "교육장 귀하",데이터입력!$C$10 & "장 귀하"))) -> 서울○○초등학교장 귀하 | L33: =IF(RIGHT(데이터입력!$C$10,2)="학교",데이터입력!$C$10 & "장 귀하",IF(RIGHT(데이터입력!$C$10,3)="교육청",데이터입력!$C$10 & "교육감 귀하",IF(RIGHT(데이터입력!$C$10,3)="지원청",데이터입력!$C$10 & "교육장 귀하",데이터입력!$C$10 & "장 귀하"))) -> 서울○○초등학교장 귀하 | M33: =IF(RIGHT(데이터입력!$C$10,2)="학교",데이터입력!$C$10 & "장 귀하",IF(RIGHT(데이터입력!$C$10,3)="교육청",데이터입력!$C$10 & "교육감 귀하",IF(RIGHT(데이터입력!$C$10,3)="지원청",데이터입력!$C$10 & "교육장 귀하",데이터입력!$C$10 & "장 귀하"))) -> 서울○○초등학교장 귀하 | N33: =IF(RIGHT(데이터입력!$C$10,2)="학교",데이터입력!$C$10 & "장 귀하",IF(RIGHT(데이터입력!$C$10,3)="교육청",데이터입력!$C$10 & "교육감 귀하",IF(RIGHT(데이터입력!$C$10,3)="지원청",데이터입력!$C$10 & "교육장 귀하",데이터입력!$C$10 & "장 귀하"))) -> 서울○○초등학교장 귀하 | O33: =IF(RIGHT(데이터입력!$C$10,2)="학교",데이터입력!$C$10 & "장 귀하",IF(RIGHT(데이터입력!$C$10,3)="교육청",데이터입력!$C$10 & "교육감 귀하",IF(RIGHT(데이터입력!$C$10,3)="지원청",데이터입력!$C$10 & "교육장 귀하",데이터입력!$C$10 & "장 귀하"))) -> 서울○○초등학교장 귀하 | P33: =IF(RIGHT(데이터입력!$C$10,2)="학교",데이터입력!$C$10 & "장 귀하",IF(RIGHT(데이터입력!$C$10,3)="교육청",데이터입력!$C$10 & "교육감 귀하",IF(RIGHT(데이터입력!$C$10,3)="지원청",데이터입력!$C$10 & "교육장 귀하",데이터입력!$C$10 & "장 귀하"))) -> 서울○○초등학교장 귀하 | Q33: =IF(RIGHT(데이터입력!$C$10,2)="학교",데이터입력!$C$10 & "장 귀하",IF(RIGHT(데이터입력!$C$10,3)="교육청",데이터입력!$C$10 & "교육감 귀하",IF(RIGHT(데이터입력!$C$10,3)="지원청",데이터입력!$C$10 & "교육장 귀하",데이터입력!$C$10 & "장 귀하"))) -> 서울○○초등학교장 귀하 | R33: =IF(RIGHT(데이터입력!$C$10,2)="학교",데이터입력!$C$10 & "장 귀하",IF(RIGHT(데이터입력!$C$10,3)="교육청",데이터입력!$C$10 & "교육감 귀하",IF(RIGHT(데이터입력!$C$10,3)="지원청",데이터입력!$C$10 & "교육장 귀하",데이터입력!$C$10 & "장 귀하"))) -> 서울○○초등학교장 귀하 | S33: =IF(RIGHT(데이터입력!$C$10,2)="학교",데이터입력!$C$10 & "장 귀하",IF(RIGHT(데이터입력!$C$10,3)="교육청",데이터입력!$C$10 & "교육감 귀하",IF(RIGHT(데이터입력!$C$10,3)="지원청",데이터입력!$C$10 & "교육장 귀하",데이터입력!$C$10 & "장 귀하"))) -> 서울○○초등학교장 귀하 | T33: =IF(RIGHT(데이터입력!$C$10,2)="학교",데이터입력!$C$10 & "장 귀하",IF(RIGHT(데이터입력!$C$10,3)="교육청",데이터입력!$C$10 & "교육감 귀하",IF(RIGHT(데이터입력!$C$10,3)="지원청",데이터입력!$C$10 & "교육장 귀하",데이터입력!$C$10 & "장 귀하"))) -> 서울○○초등학교장 귀하 | U33: =IF(RIGHT(데이터입력!$C$10,2)="학교",데이터입력!$C$10 & "장 귀하",IF(RIGHT(데이터입력!$C$10,3)="교육청",데이터입력!$C$10 & "교육감 귀하",IF(RIGHT(데이터입력!$C$10,3)="지원청",데이터입력!$C$10 & "교육장 귀하",데이터입력!$C$10 & "장 귀하"))) -> 서울○○초등학교장 귀하 | V33: =IF(RIGHT(데이터입력!$C$10,2)="학교",데이터입력!$C$10 & "장 귀하",IF(RIGHT(데이터입력!$C$10,3)="교육청",데이터입력!$C$10 & "교육감 귀하",IF(RIGHT(데이터입력!$C$10,3)="지원청",데이터입력!$C$10 & "교육장 귀하",데이터입력!$C$10 & "장 귀하"))) -> 서울○○초등학교장 귀하 | W33: =IF(RIGHT(데이터입력!$C$10,2)="학교",데이터입력!$C$10 & "장 귀하",IF(RIGHT(데이터입력!$C$10,3)="교육청",데이터입력!$C$10 & "교육감 귀하",IF(RIGHT(데이터입력!$C$10,3)="지원청",데이터입력!$C$10 & "교육장 귀하",데이터입력!$C$10 & "장 귀하"))) -> 서울○○초등학교장 귀하 | X33: =IF(RIGHT(데이터입력!$C$10,2)="학교",데이터입력!$C$10 & "장 귀하",IF(RIGHT(데이터입력!$C$10,3)="교육청",데이터입력!$C$10 & "교육감 귀하",IF(RIGHT(데이터입력!$C$10,3)="지원청",데이터입력!$C$10 & "교육장 귀하",데이터입력!$C$10 & "장 귀하"))) -> 서울○○초등학교장 귀하 | Y33: =IF(RIGHT(데이터입력!$C$10,2)="학교",데이터입력!$C$10 & "장 귀하",IF(RIGHT(데이터입력!$C$10,3)="교육청",데이터입력!$C$10 & "교육감 귀하",IF(RIGHT(데이터입력!$C$10,3)="지원청",데이터입력!$C$10 & "교육장 귀하",데이터입력!$C$10 & "장 귀하"))) -> 서울○○초등학교장 귀하 | Z33: =IF(RIGHT(데이터입력!$C$10,2)="학교",데이터입력!$C$10 & "장 귀하",IF(RIGHT(데이터입력!$C$10,3)="교육청",데이터입력!$C$10 & "교육감 귀하",IF(RIGHT(데이터입력!$C$10,3)="지원청",데이터입력!$C$10 & "교육장 귀하",데이터입력!$C$10 & "장 귀하"))) -> 서울○○초등학교장 귀하 | AA33: =IF(RIGHT(데이터입력!$C$10,2)="학교",데이터입력!$C$10 & "장 귀하",IF(RIGHT(데이터입력!$C$10,3)="교육청",데이터입력!$C$10 & "교육감 귀하",IF(RIGHT(데이터입력!$C$10,3)="지원청",데이터입력!$C$10 & "교육장 귀하",데이터입력!$C$10 & "장 귀하"))) -> 서울○○초등학교장 귀하 | AB33: =IF(RIGHT(데이터입력!$C$10,2)="학교",데이터입력!$C$10 & "장 귀하",IF(RIGHT(데이터입력!$C$10,3)="교육청",데이터입력!$C$10 & "교육감 귀하",IF(RIGHT(데이터입력!$C$10,3)="지원청",데이터입력!$C$10 & "교육장 귀하",데이터입력!$C$10 & "장 귀하"))) -> 서울○○초등학교장 귀하 | AC33: =IF(RIGHT(데이터입력!$C$10,2)="학교",데이터입력!$C$10 & "장 귀하",IF(RIGHT(데이터입력!$C$10,3)="교육청",데이터입력!$C$10 & "교육감 귀하",IF(RIGHT(데이터입력!$C$10,3)="지원청",데이터입력!$C$10 & "교육장 귀하",데이터입력!$C$10 & "장 귀하"))) -> 서울○○초등학교장 귀하 | AD33: =IF(RIGHT(데이터입력!$C$10,2)="학교",데이터입력!$C$10 & "장 귀하",IF(RIGHT(데이터입력!$C$10,3)="교육청",데이터입력!$C$10 & "교육감 귀하",IF(RIGHT(데이터입력!$C$10,3)="지원청",데이터입력!$C$10 & "교육장 귀하",데이터입력!$C$10 & "장 귀하"))) -> 서울○○초등학교장 귀하 | AE33: =IF(RIGHT(데이터입력!$C$10,2)="학교",데이터입력!$C$10 & "장 귀하",IF(RIGHT(데이터입력!$C$10,3)="교육청",데이터입력!$C$10 & "교육감 귀하",IF(RIGHT(데이터입력!$C$10,3)="지원청",데이터입력!$C$10 & "교육장 귀하",데이터입력!$C$10 & "장 귀하"))) -> 서울○○초등학교장 귀하 | AF33: =IF(RIGHT(데이터입력!$C$10,2)="학교",데이터입력!$C$10 & "장 귀하",IF(RIGHT(데이터입력!$C$10,3)="교육청",데이터입력!$C$10 & "교육감 귀하",IF(RIGHT(데이터입력!$C$10,3)="지원청",데이터입력!$C$10 & "교육장 귀하",데이터입력!$C$10 & "장 귀하"))) -> 서울○○초등학교장 귀하
A34: 구비서류
A35: 1. 직접 시공 및 하도급할 공사량, 공사단가 및 공사금액이 명시된 공사내역서
A36: 2. 예정공정표
AD37: (뒷 쪽)
B38: ※ 직접시공계획 통보(기재) 대상자
B39: ㆍ단독도급일 경우에는 수급인이 기재하고 공동도급일 경우에는 공동수급체 대표자가 기재합니다.
B40: ※ 기재요령
B41: 1. ① 공종 : 다음 중 선책하여 기재합니다.
B42: 공종 | D42: 토목 | K42: 건축 | R42: 산업설비 | Y42: 조경공사
B43: 세 부 공 종 | D43: 일반도로 | K43: 단독주택 및 연립주택 | R43: 제철소 및 석유화학공장등 | Y43: 수목원
D44: 고속화도로 | K44: 저층아파트(5층 이하) | R44: 산업생산시설 | Y44: 공원의 조성공사
D45: 고속도로 | K45: 고층아파트(6층~15층이상) | R45: 원자력발전소
D46: 도로교량 | K46: 초고층아파트(16층이상) | R46: 화력발전소
D47: 철도교량 | K47: 주거,사무실겸용건물 | R47: 열병합발전소
D48: 댐 | K48: 상가,백화점,쇼핑센타 | R48: 수력발전소
D49: 항만 | K49: 사무실빌딩 | R49: 집단에너지공급시설공사
D50: 공항 | K50: 오피스텔 | R50: 쓰레기소각장설치공사
D51: 일반철도 | K51: 인텔리젼트빌딩 | R51: 하수종말처리장
D52: 고속철도 | K52: 호텔,숙박시설 | R52: 폐수종말처리장
D53: 간척 | K53: 관공서건물(11층이하) | R53: 그 밖의 산업설비
D54: 치산,치수 및 사방하천 | K54: 관공서건물(11층이상)
D55: 관개수로 및 농지정리 | K55: 학교
D56: 상수도 1천 mm 이상 | K56: 병원
D57: 상수도 1천 mm 이하 | K57: 전통양식건축
D58: 정수장 | K58: 교회,사찰 등 종교적건물
D59: 하수도 | K59: 그 밖의 문화재,유적건물
D60: 택지조성 | K60: 경기장,운동장
D61: 공업용지조성 | K61: 전시(展示)시설
D62: 그 밖의 토목시설 | K62: 창고,차고,터미널건물
K63: 공장,작업장용건물
K64: 기계기구설치(플랜트제외)
K65: 위험물저장소
K66: 그 밖의 건축물
B67: 2. ②계약일 ③착공일 ④준공예정일 ⑤도급금액 : 공사의 계약연월일, 착공연월일, 준공예정연월일 및 도급금액을
B68: 기재합니다. 장기계속공사인 경우에는 총공사에 대한 최초계약연월일, 최초착공연월일, 최초준공연월일 및 총공사
B69: 부기금액을 기재합니다.
B70: 3. ⑥세부공종 : 구비서류로 제출된 공사내역서에 준해서 다음과 같이 기재합니다.
B71: 예시) ·토목공사 : 구조물공, 배수공, 안전시설공, 부대시설공, 교량공, 터널 등 해당되는 공정은 모두 기재하고
B72: 구분할 수 없는 부분은 기타로 입력합니다.
B73: ·건축공사 : 공동가설공사, 가설공사, 토공사, 철근콘크리트공사, 철골공사, 조적공사, 방수공사, 미장공사,
B74: 타일공사, 석공사, 금속공사, 창호공사, 유리공사, 도장공사, 수장공사, 지붕 및 홈통공사, 잡공사, 시설
B75: 및 제외공사 등 해당되는 공정은 모두 기재하고 구분할 수 없는 항목은 기타로 입력합니다.
B76: ·다른 토목공사 및 산업설비공사, 조경공사 등의 공사도 각 공사특성에 따라 동일한 방법으로 기재합니다.
B77: 4. ⑦경비(공과잡비) : 간접노무비, 전력비, 수도광열비, 운반비, 기계경비, 특허권사용료, 소모품비, 여비·교통비
B78: 통신비, 세금·공과금, 환경보전비, 도서인쇄비, 산재·고용·건강·연금보험료, 건설근로자퇴직공제부금비,
B79: 기타 법정경비를 말한다.
B80: 5. ⑧일반관리비 : 소계금액과 경비금액을 합한 금액에 대해 도급금액산출내역서상의 이윤 반영비율을 적용하여
B81: 안분합니다.
B82: 6. ⑨이윤 : 소계금액과 경비 금액 및 일반관리비 합계액에 대해 도급금액산출내역서상의 이윤 반영비율을 적용하여
B83: 안분합니다.
B84: 7. 직접시공 금액의 합계(⑩)와 하도급(예정)금액의 합계(⑪)를 합산한 금액(⑩+⑪)은 도급금액(⑤)와 일치하도록
B85: 입력해야 합니다.

Sheet 수도전기료 납부 각서
B2: 각 서
B3: =IF(F5="","(해 당 없 음)","") -> 
B4: 당사는 발주처인 | E4: =데이터입력!C10 -> 서울○○초등학교 | I4: =IF(RIGHT(E4,1)="교","와","과")&" 계약체결하여 시공 예정인 아래" -> 와 계약체결하여 시공 예정인 아래
B5: =" 공사건에 대하여 귀 기관의" -> 공사건에 대하여 귀 기관의 | F5: =IF(데이터입력!C35=0,"",데이터입력!C35) -> 수도·전기 | I5: 를 사용할 경우에는 대한건설협회 | W5: 데이터입력시트로
B6: "완성공사원가분석" 경비율에 의한 계산식으로 | M6: =IF(데이터입력!C35=0,"",데이터입력!C35) -> 수도·전기 | P6: 요금을 귀 기관에
B7: 세입조치하고 이에 대하여 이의를 제기하지 않을 것을 확약합니다.
B10: ○ 공 사 명 : | C10: =데이터입력!C9 -> ○○초 돌봄교실 설치공사
B11: ○ 계 약 자 : | C11: =데이터입력!C18 -> ○○건설㈜ | G11: 대표 | I11: : | K11: =데이터입력!E18 -> ○○○
B12: ○ 공사금액 : | C12: =TEXT(데이터입력!C25,"금 #,##0 원(금 "&NUMBERSTRING(데이터입력!C25,1)&" 원정)") -> 금 123,456,000 원(금 일억이천삼백사십오만육천 원정)
B13: ○ 공사기간 : | C13: =데이터입력!C28 -> 2016-10-20 | G13: ~ | H13: =데이터입력!C29 -> 2016-11-18
B16: =데이터입력!C26 -> 2016-10-16
E19: 계약자 | G19: 업 체 명 : | M19: =데이터입력!C18 -> ○○건설㈜
G20: 대 표 자 : | M20: =데이터입력!E18 & " (인)" -> ○○○ (인)
G21: 현장대리인 : | M21: =데이터입력!C22 &" (인)" -> ○○○ (인)
B23: =IF(RIGHT(데이터입력!$C$10,2)="학교",데이터입력!$C$10 & "장 귀하",IF(RIGHT(데이터입력!$C$10,3)="교육청",데이터입력!$C$10 & "교육감 귀하",IF(RIGHT(데이터입력!$C$10,3)="지원청",데이터입력!$C$10 & "교육장 귀하",데이터입력!$C$10 & "장 귀하"))) -> 서울○○초등학교장 귀하 | C23: =IF(RIGHT(데이터입력!$C$10,2)="학교",데이터입력!$C$10 & "장 귀하",IF(RIGHT(데이터입력!$C$10,3)="교육청",데이터입력!$C$10 & "교육감 귀하",IF(RIGHT(데이터입력!$C$10,3)="지원청",데이터입력!$C$10 & "교육장 귀하",데이터입력!$C$10 & "장 귀하"))) -> 서울○○초등학교장 귀하 | D23: =IF(RIGHT(데이터입력!$C$10,2)="학교",데이터입력!$C$10 & "장 귀하",IF(RIGHT(데이터입력!$C$10,3)="교육청",데이터입력!$C$10 & "교육감 귀하",IF(RIGHT(데이터입력!$C$10,3)="지원청",데이터입력!$C$10 & "교육장 귀하",데이터입력!$C$10 & "장 귀하"))) -> 서울○○초등학교장 귀하 | E23: =IF(RIGHT(데이터입력!$C$10,2)="학교",데이터입력!$C$10 & "장 귀하",IF(RIGHT(데이터입력!$C$10,3)="교육청",데이터입력!$C$10 & "교육감 귀하",IF(RIGHT(데이터입력!$C$10,3)="지원청",데이터입력!$C$10 & "교육장 귀하",데이터입력!$C$10 & "장 귀하"))) -> 서울○○초등학교장 귀하 | F23: =IF(RIGHT(데이터입력!$C$10,2)="학교",데이터입력!$C$10 & "장 귀하",IF(RIGHT(데이터입력!$C$10,3)="교육청",데이터입력!$C$10 & "교육감 귀하",IF(RIGHT(데이터입력!$C$10,3)="지원청",데이터입력!$C$10 & "교육장 귀하",데이터입력!$C$10 & "장 귀하"))) -> 서울○○초등학교장 귀하 | G23: =IF(RIGHT(데이터입력!$C$10,2)="학교",데이터입력!$C$10 & "장 귀하",IF(RIGHT(데이터입력!$C$10,3)="교육청",데이터입력!$C$10 & "교육감 귀하",IF(RIGHT(데이터입력!$C$10,3)="지원청",데이터입력!$C$10 & "교육장 귀하",데이터입력!$C$10 & "장 귀하"))) -> 서울○○초등학교장 귀하 | H23: =IF(RIGHT(데이터입력!$C$10,2)="학교",데이터입력!$C$10 & "장 귀하",IF(RIGHT(데이터입력!$C$10,3)="교육청",데이터입력!$C$10 & "교육감 귀하",IF(RIGHT(데이터입력!$C$10,3)="지원청",데이터입력!$C$10 & "교육장 귀하",데이터입력!$C$10 & "장 귀하"))) -> 서울○○초등학교장 귀하 | I23: =IF(RIGHT(데이터입력!$C$10,2)="학교",데이터입력!$C$10 & "장 귀하",IF(RIGHT(데이터입력!$C$10,3)="교육청",데이터입력!$C$10 & "교육감 귀하",IF(RIGHT(데이터입력!$C$10,3)="지원청",데이터입력!$C$10 & "교육장 귀하",데이터입력!$C$10 & "장 귀하"))) -> 서울○○초등학교장 귀하 | J23: =IF(RIGHT(데이터입력!$C$10,2)="학교",데이터입력!$C$10 & "장 귀하",IF(RIGHT(데이터입력!$C$10,3)="교육청",데이터입력!$C$10 & "교육감 귀하",IF(RIGHT(데이터입력!$C$10,3)="지원청",데이터입력!$C$10 & "교육장 귀하",데이터입력!$C$10 & "장 귀하"))) -> 서울○○초등학교장 귀하 | K23: =IF(RIGHT(데이터입력!$C$10,2)="학교",데이터입력!$C$10 & "장 귀하",IF(RIGHT(데이터입력!$C$10,3)="교육청",데이터입력!$C$10 & "교육감 귀하",IF(RIGHT(데이터입력!$C$10,3)="지원청",데이터입력!$C$10 & "교육장 귀하",데이터입력!$C$10 & "장 귀하"))) -> 서울○○초등학교장 귀하 | L23: =IF(RIGHT(데이터입력!$C$10,2)="학교",데이터입력!$C$10 & "장 귀하",IF(RIGHT(데이터입력!$C$10,3)="교육청",데이터입력!$C$10 & "교육감 귀하",IF(RIGHT(데이터입력!$C$10,3)="지원청",데이터입력!$C$10 & "교육장 귀하",데이터입력!$C$10 & "장 귀하"))) -> 서울○○초등학교장 귀하 | M23: =IF(RIGHT(데이터입력!$C$10,2)="학교",데이터입력!$C$10 & "장 귀하",IF(RIGHT(데이터입력!$C$10,3)="교육청",데이터입력!$C$10 & "교육감 귀하",IF(RIGHT(데이터입력!$C$10,3)="지원청",데이터입력!$C$10 & "교육장 귀하",데이터입력!$C$10 & "장 귀하"))) -> 서울○○초등학교장 귀하 | N23: =IF(RIGHT(데이터입력!$C$10,2)="학교",데이터입력!$C$10 & "장 귀하",IF(RIGHT(데이터입력!$C$10,3)="교육청",데이터입력!$C$10 & "교육감 귀하",IF(RIGHT(데이터입력!$C$10,3)="지원청",데이터입력!$C$10 & "교육장 귀하",데이터입력!$C$10 & "장 귀하"))) -> 서울○○초등학교장 귀하 | O23: =IF(RIGHT(데이터입력!$C$10,2)="학교",데이터입력!$C$10 & "장 귀하",IF(RIGHT(데이터입력!$C$10,3)="교육청",데이터입력!$C$10 & "교육감 귀하",IF(RIGHT(데이터입력!$C$10,3)="지원청",데이터입력!$C$10 & "교육장 귀하",데이터입력!$C$10 & "장 귀하"))) -> 서울○○초등학교장 귀하 | P23: =IF(RIGHT(데이터입력!$C$10,2)="학교",데이터입력!$C$10 & "장 귀하",IF(RIGHT(데이터입력!$C$10,3)="교육청",데이터입력!$C$10 & "교육감 귀하",IF(RIGHT(데이터입력!$C$10,3)="지원청",데이터입력!$C$10 & "교육장 귀하",데이터입력!$C$10 & "장 귀하"))) -> 서울○○초등학교장 귀하 | Q23: =IF(RIGHT(데이터입력!$C$10,2)="학교",데이터입력!$C$10 & "장 귀하",IF(RIGHT(데이터입력!$C$10,3)="교육청",데이터입력!$C$10 & "교육감 귀하",IF(RIGHT(데이터입력!$C$10,3)="지원청",데이터입력!$C$10 & "교육장 귀하",데이터입력!$C$10 & "장 귀하"))) -> 서울○○초등학교장 귀하 | R23: =IF(RIGHT(데이터입력!$C$10,2)="학교",데이터입력!$C$10 & "장 귀하",IF(RIGHT(데이터입력!$C$10,3)="교육청",데이터입력!$C$10 & "교육감 귀하",IF(RIGHT(데이터입력!$C$10,3)="지원청",데이터입력!$C$10 & "교육장 귀하",데이터입력!$C$10 & "장 귀하"))) -> 서울○○초등학교장 귀하 | S23: =IF(RIGHT(데이터입력!$C$10,2)="학교",데이터입력!$C$10 & "장 귀하",IF(RIGHT(데이터입력!$C$10,3)="교육청",데이터입력!$C$10 & "교육감 귀하",IF(RIGHT(데이터입력!$C$10,3)="지원청",데이터입력!$C$10 & "교육장 귀하",데이터입력!$C$10 & "장 귀하"))) -> 서울○○초등학교장 귀하

Sheet 준공계
A2: 준 공 계
S3: 데이터입력시트로
B4: 1. 공 사 명 : | C4: =데이터입력!C9 -> ○○초 돌봄교실 설치공사
B6: 2. 계약금액 : | C6: =TEXT(데이터입력!C25,"금 #,##0 원(금 "&NUMBERSTRING(데이터입력!C25,1)&" 원정)") -> 금 123,456,000 원(금 일억이천삼백사십오만육천 원정)
B8: 3. 계약일자 : | C8: =데이터입력!C26 -> 2016-10-16
B10: 4. 착공일자 : | C10: =데이터입력!C28 -> 2016-10-20
B12: 5. 준공기한 : | C12: =데이터입력!C29 -> 2016-11-18
B14: 6. 준공일자 : | C14: =데이터입력!C30 -> 2016-11-18
B17: 상기공사를 준공하였기에 준공계를 제출합니다.
B20: =데이터입력!C30 -> 2016-11-18
C23: 회 사 명 : | F23: =데이터입력!C18 -> ○○건설㈜
C24: 사업자등록번호 : | F24: =데이터입력!C21 -> 1234567890
C25: 주 소 : | F25: =데이터입력!E19 -> 서울시 00구 00로 00길 000
C26: 대 표 자 : | F26: =데이터입력!E18 & " (인)" -> ○○○ (인)
B29: =IF(RIGHT(데이터입력!$C$10,2)="학교",데이터입력!$C$10 & "장 귀하",IF(RIGHT(데이터입력!$C$10,3)="교육청",데이터입력!$C$10 & "교육감 귀하",IF(RIGHT(데이터입력!$C$10,3)="지원청",데이터입력!$C$10 & "교육장 귀하",데이터입력!$C$10 & "장 귀하"))) -> 서울○○초등학교장 귀하 | C29: =IF(RIGHT(데이터입력!$C$10,2)="학교",데이터입력!$C$10 & "장 귀하",IF(RIGHT(데이터입력!$C$10,3)="교육청",데이터입력!$C$10 & "교육감 귀하",IF(RIGHT(데이터입력!$C$10,3)="지원청",데이터입력!$C$10 & "교육장 귀하",데이터입력!$C$10 & "장 귀하"))) -> 서울○○초등학교장 귀하 | D29: =IF(RIGHT(데이터입력!$C$10,2)="학교",데이터입력!$C$10 & "장 귀하",IF(RIGHT(데이터입력!$C$10,3)="교육청",데이터입력!$C$10 & "교육감 귀하",IF(RIGHT(데이터입력!$C$10,3)="지원청",데이터입력!$C$10 & "교육장 귀하",데이터입력!$C$10 & "장 귀하"))) -> 서울○○초등학교장 귀하 | E29: =IF(RIGHT(데이터입력!$C$10,2)="학교",데이터입력!$C$10 & "장 귀하",IF(RIGHT(데이터입력!$C$10,3)="교육청",데이터입력!$C$10 & "교육감 귀하",IF(RIGHT(데이터입력!$C$10,3)="지원청",데이터입력!$C$10 & "교육장 귀하",데이터입력!$C$10 & "장 귀하"))) -> 서울○○초등학교장 귀하 | F29: =IF(RIGHT(데이터입력!$C$10,2)="학교",데이터입력!$C$10 & "장 귀하",IF(RIGHT(데이터입력!$C$10,3)="교육청",데이터입력!$C$10 & "교육감 귀하",IF(RIGHT(데이터입력!$C$10,3)="지원청",데이터입력!$C$10 & "교육장 귀하",데이터입력!$C$10 & "장 귀하"))) -> 서울○○초등학교장 귀하 | G29: =IF(RIGHT(데이터입력!$C$10,2)="학교",데이터입력!$C$10 & "장 귀하",IF(RIGHT(데이터입력!$C$10,3)="교육청",데이터입력!$C$10 & "교육감 귀하",IF(RIGHT(데이터입력!$C$10,3)="지원청",데이터입력!$C$10 & "교육장 귀하",데이터입력!$C$10 & "장 귀하"))) -> 서울○○초등학교장 귀하 | H29: =IF(RIGHT(데이터입력!$C$10,2)="학교",데이터입력!$C$10 & "장 귀하",IF(RIGHT(데이터입력!$C$10,3)="교육청",데이터입력!$C$10 & "교육감 귀하",IF(RIGHT(데이터입력!$C$10,3)="지원청",데이터입력!$C$10 & "교육장 귀하",데이터입력!$C$10 & "장 귀하"))) -> 서울○○초등학교장 귀하 | I29: =IF(RIGHT(데이터입력!$C$10,2)="학교",데이터입력!$C$10 & "장 귀하",IF(RIGHT(데이터입력!$C$10,3)="교육청",데이터입력!$C$10 & "교육감 귀하",IF(RIGHT(데이터입력!$C$10,3)="지원청",데이터입력!$C$10 & "교육장 귀하",데이터입력!$C$10 & "장 귀하"))) -> 서울○○초등학교장 귀하 | J29: =IF(RIGHT(데이터입력!$C$10,2)="학교",데이터입력!$C$10 & "장 귀하",IF(RIGHT(데이터입력!$C$10,3)="교육청",데이터입력!$C$10 & "교육감 귀하",IF(RIGHT(데이터입력!$C$10,3)="지원청",데이터입력!$C$10 & "교육장 귀하",데이터입력!$C$10 & "장 귀하"))) -> 서울○○초등학교장 귀하 | K29: =IF(RIGHT(데이터입력!$C$10,2)="학교",데이터입력!$C$10 & "장 귀하",IF(RIGHT(데이터입력!$C$10,3)="교육청",데이터입력!$C$10 & "교육감 귀하",IF(RIGHT(데이터입력!$C$10,3)="지원청",데이터입력!$C$10 & "교육장 귀하",데이터입력!$C$10 & "장 귀하"))) -> 서울○○초등학교장 귀하 | L29: =IF(RIGHT(데이터입력!$C$10,2)="학교",데이터입력!$C$10 & "장 귀하",IF(RIGHT(데이터입력!$C$10,3)="교육청",데이터입력!$C$10 & "교육감 귀하",IF(RIGHT(데이터입력!$C$10,3)="지원청",데이터입력!$C$10 & "교육장 귀하",데이터입력!$C$10 & "장 귀하"))) -> 서울○○초등학교장 귀하 | M29: =IF(RIGHT(데이터입력!$C$10,2)="학교",데이터입력!$C$10 & "장 귀하",IF(RIGHT(데이터입력!$C$10,3)="교육청",데이터입력!$C$10 & "교육감 귀하",IF(RIGHT(데이터입력!$C$10,3)="지원청",데이터입력!$C$10 & "교육장 귀하",데이터입력!$C$10 & "장 귀하"))) -> 서울○○초등학교장 귀하 | N29: =IF(RIGHT(데이터입력!$C$10,2)="학교",데이터입력!$C$10 & "장 귀하",IF(RIGHT(데이터입력!$C$10,3)="교육청",데이터입력!$C$10 & "교육감 귀하",IF(RIGHT(데이터입력!$C$10,3)="지원청",데이터입력!$C$10 & "교육장 귀하",데이터입력!$C$10 & "장 귀하"))) -> 서울○○초등학교장 귀하 | O29: =IF(RIGHT(데이터입력!$C$10,2)="학교",데이터입력!$C$10 & "장 귀하",IF(RIGHT(데이터입력!$C$10,3)="교육청",데이터입력!$C$10 & "교육감 귀하",IF(RIGHT(데이터입력!$C$10,3)="지원청",데이터입력!$C$10 & "교육장 귀하",데이터입력!$C$10 & "장 귀하"))) -> 서울○○초등학교장 귀하 | P29: =IF(RIGHT(데이터입력!$C$10,2)="학교",데이터입력!$C$10 & "장 귀하",IF(RIGHT(데이터입력!$C$10,3)="교육청",데이터입력!$C$10 & "교육감 귀하",IF(RIGHT(데이터입력!$C$10,3)="지원청",데이터입력!$C$10 & "교육장 귀하",데이터입력!$C$10 & "장 귀하"))) -> 서울○○초등학교장 귀하 | Q29: =IF(RIGHT(데이터입력!$C$10,2)="학교",데이터입력!$C$10 & "장 귀하",IF(RIGHT(데이터입력!$C$10,3)="교육청",데이터입력!$C$10 & "교육감 귀하",IF(RIGHT(데이터입력!$C$10,3)="지원청",데이터입력!$C$10 & "교육장 귀하",데이터입력!$C$10 & "장 귀하"))) -> 서울○○초등학교장 귀하

Sheet 준공검사원
B2: 준 공 검 사 원
S3: 데이터입력시트로
B4: 1. 공 사 명 : | C4: =데이터입력!C9 -> ○○초 돌봄교실 설치공사
B6: 2. 계약금액 : | C6: =TEXT(데이터입력!C25,"금 #,##0 원(금 "&NUMBERSTRING(데이터입력!C25,1)&" 원정)") -> 금 123,456,000 원(금 일억이천삼백사십오만육천 원정)
B8: 3. 계약일자 : | C8: =데이터입력!C26 -> 2016-10-16
B10: 4. 착공일자 : | C10: =데이터입력!C28 -> 2016-10-20
B12: 5. 준공기한 : | C12: =데이터입력!C29 -> 2016-11-18
B14: 6. 준공일자 : | C14: =데이터입력!C30 -> 2016-11-18
B16: 위 공사의 도급시행에 있어서 공사전반에 걸쳐 공사설계도서, 품질관리기준 및 기타
B17: 약정대로 어김없이 준공되었음을 확인하오며, 만약 공사시공, 감독 및 검사에 관하여
B18: 하자가 발견될 시는 하자담보기간 전후를 막론하고 실액변상 또는 재시공할 것을
B19: 서약하고 이에 준공검사원을 제출합니다.
B21: =데이터입력!C30 -> 2016-11-18
C23: 업 체 명 | E23: : | F23: =데이터입력!C18 -> ○○건설㈜
C24: 사업자등록번호 | E24: : | F24: =데이터입력!C21 -> 1234567890
C25: 주 소 | E25: : | F25: =데이터입력!E19 -> 서울시 00구 00로 00길 000
C26: 대 표 자 | E26: : | F26: =데이터입력!E18 & " (인)" -> ○○○ (인)
B29: =IF(RIGHT(데이터입력!$C$10,2)="학교",데이터입력!$C$10 & "장 귀하",IF(RIGHT(데이터입력!$C$10,3)="교육청",데이터입력!$C$10 & "교육감 귀하",IF(RIGHT(데이터입력!$C$10,3)="지원청",데이터입력!$C$10 & "교육장 귀하",데이터입력!$C$10 & "장 귀하"))) -> 서울○○초등학교장 귀하 | C29: =IF(RIGHT(데이터입력!$C$10,2)="학교",데이터입력!$C$10 & "장 귀하",IF(RIGHT(데이터입력!$C$10,3)="교육청",데이터입력!$C$10 & "교육감 귀하",IF(RIGHT(데이터입력!$C$10,3)="지원청",데이터입력!$C$10 & "교육장 귀하",데이터입력!$C$10 & "장 귀하"))) -> 서울○○초등학교장 귀하 | D29: =IF(RIGHT(데이터입력!$C$10,2)="학교",데이터입력!$C$10 & "장 귀하",IF(RIGHT(데이터입력!$C$10,3)="교육청",데이터입력!$C$10 & "교육감 귀하",IF(RIGHT(데이터입력!$C$10,3)="지원청",데이터입력!$C$10 & "교육장 귀하",데이터입력!$C$10 & "장 귀하"))) -> 서울○○초등학교장 귀하 | E29: =IF(RIGHT(데이터입력!$C$10,2)="학교",데이터입력!$C$10 & "장 귀하",IF(RIGHT(데이터입력!$C$10,3)="교육청",데이터입력!$C$10 & "교육감 귀하",IF(RIGHT(데이터입력!$C$10,3)="지원청",데이터입력!$C$10 & "교육장 귀하",데이터입력!$C$10 & "장 귀하"))) -> 서울○○초등학교장 귀하 | F29: =IF(RIGHT(데이터입력!$C$10,2)="학교",데이터입력!$C$10 & "장 귀하",IF(RIGHT(데이터입력!$C$10,3)="교육청",데이터입력!$C$10 & "교육감 귀하",IF(RIGHT(데이터입력!$C$10,3)="지원청",데이터입력!$C$10 & "교육장 귀하",데이터입력!$C$10 & "장 귀하"))) -> 서울○○초등학교장 귀하 | G29: =IF(RIGHT(데이터입력!$C$10,2)="학교",데이터입력!$C$10 & "장 귀하",IF(RIGHT(데이터입력!$C$10,3)="교육청",데이터입력!$C$10 & "교육감 귀하",IF(RIGHT(데이터입력!$C$10,3)="지원청",데이터입력!$C$10 & "교육장 귀하",데이터입력!$C$10 & "장 귀하"))) -> 서울○○초등학교장 귀하 | H29: =IF(RIGHT(데이터입력!$C$10,2)="학교",데이터입력!$C$10 & "장 귀하",IF(RIGHT(데이터입력!$C$10,3)="교육청",데이터입력!$C$10 & "교육감 귀하",IF(RIGHT(데이터입력!$C$10,3)="지원청",데이터입력!$C$10 & "교육장 귀하",데이터입력!$C$10 & "장 귀하"))) -> 서울○○초등학교장 귀하 | I29: =IF(RIGHT(데이터입력!$C$10,2)="학교",데이터입력!$C$10 & "장 귀하",IF(RIGHT(데이터입력!$C$10,3)="교육청",데이터입력!$C$10 & "교육감 귀하",IF(RIGHT(데이터입력!$C$10,3)="지원청",데이터입력!$C$10 & "교육장 귀하",데이터입력!$C$10 & "장 귀하"))) -> 서울○○초등학교장 귀하 | J29: =IF(RIGHT(데이터입력!$C$10,2)="학교",데이터입력!$C$10 & "장 귀하",IF(RIGHT(데이터입력!$C$10,3)="교육청",데이터입력!$C$10 & "교육감 귀하",IF(RIGHT(데이터입력!$C$10,3)="지원청",데이터입력!$C$10 & "교육장 귀하",데이터입력!$C$10 & "장 귀하"))) -> 서울○○초등학교장 귀하 | K29: =IF(RIGHT(데이터입력!$C$10,2)="학교",데이터입력!$C$10 & "장 귀하",IF(RIGHT(데이터입력!$C$10,3)="교육청",데이터입력!$C$10 & "교육감 귀하",IF(RIGHT(데이터입력!$C$10,3)="지원청",데이터입력!$C$10 & "교육장 귀하",데이터입력!$C$10 & "장 귀하"))) -> 서울○○초등학교장 귀하 | L29: =IF(RIGHT(데이터입력!$C$10,2)="학교",데이터입력!$C$10 & "장 귀하",IF(RIGHT(데이터입력!$C$10,3)="교육청",데이터입력!$C$10 & "교육감 귀하",IF(RIGHT(데이터입력!$C$10,3)="지원청",데이터입력!$C$10 & "교육장 귀하",데이터입력!$C$10 & "장 귀하"))) -> 서울○○초등학교장 귀하 | M29: =IF(RIGHT(데이터입력!$C$10,2)="학교",데이터입력!$C$10 & "장 귀하",IF(RIGHT(데이터입력!$C$10,3)="교육청",데이터입력!$C$10 & "교육감 귀하",IF(RIGHT(데이터입력!$C$10,3)="지원청",데이터입력!$C$10 & "교육장 귀하",데이터입력!$C$10 & "장 귀하"))) -> 서울○○초등학교장 귀하 | N29: =IF(RIGHT(데이터입력!$C$10,2)="학교",데이터입력!$C$10 & "장 귀하",IF(RIGHT(데이터입력!$C$10,3)="교육청",데이터입력!$C$10 & "교육감 귀하",IF(RIGHT(데이터입력!$C$10,3)="지원청",데이터입력!$C$10 & "교육장 귀하",데이터입력!$C$10 & "장 귀하"))) -> 서울○○초등학교장 귀하 | O29: =IF(RIGHT(데이터입력!$C$10,2)="학교",데이터입력!$C$10 & "장 귀하",IF(RIGHT(데이터입력!$C$10,3)="교육청",데이터입력!$C$10 & "교육감 귀하",IF(RIGHT(데이터입력!$C$10,3)="지원청",데이터입력!$C$10 & "교육장 귀하",데이터입력!$C$10 & "장 귀하"))) -> 서울○○초등학교장 귀하 | P29: =IF(RIGHT(데이터입력!$C$10,2)="학교",데이터입력!$C$10 & "장 귀하",IF(RIGHT(데이터입력!$C$10,3)="교육청",데이터입력!$C$10 & "교육감 귀하",IF(RIGHT(데이터입력!$C$10,3)="지원청",데이터입력!$C$10 & "교육장 귀하",데이터입력!$C$10 & "장 귀하"))) -> 서울○○초등학교장 귀하 | Q29: =IF(RIGHT(데이터입력!$C$10,2)="학교",데이터입력!$C$10 & "장 귀하",IF(RIGHT(데이터입력!$C$10,3)="교육청",데이터입력!$C$10 & "교육감 귀하",IF(RIGHT(데이터입력!$C$10,3)="지원청",데이터입력!$C$10 & "교육장 귀하",데이터입력!$C$10 & "장 귀하"))) -> 서울○○초등학교장 귀하

Sheet 공사감독조서
A1: 공 사 감 독 조 서
A3: 공 사 명 | D3: =데이터입력!C9 -> ○○초 돌봄교실 설치공사 | R3: 데이터입력시트로
A4: 도 급 자 | D4: =데이터입력!C18 -> ○○건설㈜ | H4: 대표 | I4: =데이터입력!E18 -> ○○○
A5: 계 약 금 액 | D5: =TEXT(데이터입력!C25,"금 #,##0 원(금 "&NUMBERSTRING(데이터입력!C25,1)&" 원정)") -> 금 123,456,000 원(금 일억이천삼백사십오만육천 원정)
A6: 계 약 일 | D6: =데이터입력!C26 -> 2016-10-16
A7: 착 공 일 | D7: =데이터입력!C28 -> 2016-10-20
A8: 준 공 기 한 | D8: =데이터입력!C29 -> 2016-11-18
A9: 실제준공일 | D9: =데이터입력!C30 -> 2016-11-18
A10: 비 고
B12: 위 공사의 감독자로 | F12: =D7 -> 2016-10-20 | J12: ~ | K12: =D9 -> 2016-11-18 | O12: 까지
A13: 실지 현장 감독한 결과 공사 전반에 걸쳐 공사설계도서, 제시방서 및 품질
A14: 관리 기준 및 기타 약정대로 어김없이 준공되었음을 인정함.
A17: =D9 -> 2016-11-18
A20: 공사감독원 | D20: =데이터입력!C10 -> 서울○○초등학교 | H20: =데이터입력!C12 & " (인)" -> 행정실장 ○○○ (인)

Sheet 준공검사조서
A1: 준 공 검 사 조 서
A3: 공 사 명 | D3: =데이터입력!C9 -> ○○초 돌봄교실 설치공사 | R3: 데이터입력시트로
A4: 도 급 자 | D4: =데이터입력!C18 -> ○○건설㈜ | H4: 대표 | I4: =데이터입력!E18 -> ○○○
A5: 계약금액 | D5: =TEXT(데이터입력!C25,"금 #,##0 원(금 "&NUMBERSTRING(데이터입력!C25,1)&" 원정)") -> 금 123,456,000 원(금 일억이천삼백사십오만육천 원정)
A6: 계 약 일 | C6: =데이터입력!C26 -> 2016-10-16 | H6: 준 공 기 한 | K6: =데이터입력!C29 -> 2016-11-18
A7: 착 공 일 | C7: =데이터입력!C28 -> 2016-10-20 | H7: 준 공 일 | K7: =데이터입력!C30 -> 2016-11-18
A8: 준공검사일 | C8: =데이터입력!C31 -> 2016-11-10
A9: 참 고 | C9: 준공정산금액 : | F9: =데이터입력!C32 -> 113456000
A10: 별 첨 | C10: 준공정산서 1부 | H10: ※공사위치, 재료, 물량 표시된 배치도, 평면도 및 공사개요 첨부
A12: 위와 같이 준공검사를 필하였음
A16: =데이터입력!C31 -> 2016-11-10
B20: 검사자 | F20: =데이터입력!C10 -> 서울○○초등학교 | H20: =데이터입력!C15 & " (인)" -> 행정실장 ○○○ (인)
B22: 입회자 | H22: =데이터입력!E15 & " (인)" -> 교장 ○○○ (인)
B24: 입회자 | H24: (인)

Sheet 하자보증금납부서
A2: 하 자 보 수 보 증 금 납 부 서
A3: 공 사 명 | D3: =데이터입력!C9 -> ○○초 돌봄교실 설치공사 | S3: 데이터입력시트로
A4: 계약금액 | D4: =TEXT(데이터입력!C25,"금 #,##0 원(금 "&NUMBERSTRING(데이터입력!C25,1)&" 원정)") -> 금 123,456,000 원(금 일억이천삼백사십오만육천 원정)
A5: 계약일자 | D5: =데이터입력!C26 -> 2016-10-16 | H5: 준공일자 | N5: =데이터입력!C30 -> 2016-11-18
A6: 하자보증금율 | D6: =데이터입력!E32 -> 0.03
A7: 하자보증금액 | D7: =TEXT(데이터입력!E33,"금 #,##0 원(금 "&NUMBERSTRING(데이터입력!E33,1)&" 원정)") -> 금 3,703,680 원(금 삼백칠십만삼천육백팔십 원정)
A8: 하자담보책임기간 | D8: =데이터입력!E28 -> 2016-11-10 | H8: ~ | I8: =데이터입력!E29 -> 2017-11-09
A9: 보증금납부방법 | D9: =데이터입력!E34 -> 이행보증증권
B11: 위의 금액을 하자보수보증금으로 납부합니다.
B14: =데이터입력!E28 -> 2016-11-10
B16: 업 체 명 : | C16: =데이터입력!C18 -> ○○건설㈜
B17: 사업자등록번호 : | C17: =데이터입력!C21 -> 1234567890
B18: 주 소 : | C18: =데이터입력!E19 -> 서울시 00구 00로 00길 000
B19: 대 표 자 : | C19: =데이터입력!E18 & " (인)" -> ○○○ (인)
B21: =IF(RIGHT(데이터입력!$C$10,2)="학교",데이터입력!$C$10 & "장 귀하",IF(RIGHT(데이터입력!$C$10,3)="교육청",데이터입력!$C$10 & "교육감 귀하",IF(RIGHT(데이터입력!$C$10,3)="지원청",데이터입력!$C$10 & "교육장 귀하",데이터입력!$C$10 & "장 귀하"))) -> 서울○○초등학교장 귀하 | C21: =IF(RIGHT(데이터입력!$C$10,2)="학교",데이터입력!$C$10 & "장 귀하",IF(RIGHT(데이터입력!$C$10,3)="교육청",데이터입력!$C$10 & "교육감 귀하",IF(RIGHT(데이터입력!$C$10,3)="지원청",데이터입력!$C$10 & "교육장 귀하",데이터입력!$C$10 & "장 귀하"))) -> 서울○○초등학교장 귀하 | D21: =IF(RIGHT(데이터입력!$C$10,2)="학교",데이터입력!$C$10 & "장 귀하",IF(RIGHT(데이터입력!$C$10,3)="교육청",데이터입력!$C$10 & "교육감 귀하",IF(RIGHT(데이터입력!$C$10,3)="지원청",데이터입력!$C$10 & "교육장 귀하",데이터입력!$C$10 & "장 귀하"))) -> 서울○○초등학교장 귀하 | E21: =IF(RIGHT(데이터입력!$C$10,2)="학교",데이터입력!$C$10 & "장 귀하",IF(RIGHT(데이터입력!$C$10,3)="교육청",데이터입력!$C$10 & "교육감 귀하",IF(RIGHT(데이터입력!$C$10,3)="지원청",데이터입력!$C$10 & "교육장 귀하",데이터입력!$C$10 & "장 귀하"))) -> 서울○○초등학교장 귀하 | F21: =IF(RIGHT(데이터입력!$C$10,2)="학교",데이터입력!$C$10 & "장 귀하",IF(RIGHT(데이터입력!$C$10,3)="교육청",데이터입력!$C$10 & "교육감 귀하",IF(RIGHT(데이터입력!$C$10,3)="지원청",데이터입력!$C$10 & "교육장 귀하",데이터입력!$C$10 & "장 귀하"))) -> 서울○○초등학교장 귀하 | G21: =IF(RIGHT(데이터입력!$C$10,2)="학교",데이터입력!$C$10 & "장 귀하",IF(RIGHT(데이터입력!$C$10,3)="교육청",데이터입력!$C$10 & "교육감 귀하",IF(RIGHT(데이터입력!$C$10,3)="지원청",데이터입력!$C$10 & "교육장 귀하",데이터입력!$C$10 & "장 귀하"))) -> 서울○○초등학교장 귀하 | H21: =IF(RIGHT(데이터입력!$C$10,2)="학교",데이터입력!$C$10 & "장 귀하",IF(RIGHT(데이터입력!$C$10,3)="교육청",데이터입력!$C$10 & "교육감 귀하",IF(RIGHT(데이터입력!$C$10,3)="지원청",데이터입력!$C$10 & "교육장 귀하",데이터입력!$C$10 & "장 귀하"))) -> 서울○○초등학교장 귀하 | I21: =IF(RIGHT(데이터입력!$C$10,2)="학교",데이터입력!$C$10 & "장 귀하",IF(RIGHT(데이터입력!$C$10,3)="교육청",데이터입력!$C$10 & "교육감 귀하",IF(RIGHT(데이터입력!$C$10,3)="지원청",데이터입력!$C$10 & "교육장 귀하",데이터입력!$C$10 & "장 귀하"))) -> 서울○○초등학교장 귀하 | J21: =IF(RIGHT(데이터입력!$C$10,2)="학교",데이터입력!$C$10 & "장 귀하",IF(RIGHT(데이터입력!$C$10,3)="교육청",데이터입력!$C$10 & "교육감 귀하",IF(RIGHT(데이터입력!$C$10,3)="지원청",데이터입력!$C$10 & "교육장 귀하",데이터입력!$C$10 & "장 귀하"))) -> 서울○○초등학교장 귀하 | K21: =IF(RIGHT(데이터입력!$C$10,2)="학교",데이터입력!$C$10 & "장 귀하",IF(RIGHT(데이터입력!$C$10,3)="교육청",데이터입력!$C$10 & "교육감 귀하",IF(RIGHT(데이터입력!$C$10,3)="지원청",데이터입력!$C$10 & "교육장 귀하",데이터입력!$C$10 & "장 귀하"))) -> 서울○○초등학교장 귀하 | L21: =IF(RIGHT(데이터입력!$C$10,2)="학교",데이터입력!$C$10 & "장 귀하",IF(RIGHT(데이터입력!$C$10,3)="교육청",데이터입력!$C$10 & "교육감 귀하",IF(RIGHT(데이터입력!$C$10,3)="지원청",데이터입력!$C$10 & "교육장 귀하",데이터입력!$C$10 & "장 귀하"))) -> 서울○○초등학교장 귀하 | M21: =IF(RIGHT(데이터입력!$C$10,2)="학교",데이터입력!$C$10 & "장 귀하",IF(RIGHT(데이터입력!$C$10,3)="교육청",데이터입력!$C$10 & "교육감 귀하",IF(RIGHT(데이터입력!$C$10,3)="지원청",데이터입력!$C$10 & "교육장 귀하",데이터입력!$C$10 & "장 귀하"))) -> 서울○○초등학교장 귀하 | N21: =IF(RIGHT(데이터입력!$C$10,2)="학교",데이터입력!$C$10 & "장 귀하",IF(RIGHT(데이터입력!$C$10,3)="교육청",데이터입력!$C$10 & "교육감 귀하",IF(RIGHT(데이터입력!$C$10,3)="지원청",데이터입력!$C$10 & "교육장 귀하",데이터입력!$C$10 & "장 귀하"))) -> 서울○○초등학교장 귀하 | O21: =IF(RIGHT(데이터입력!$C$10,2)="학교",데이터입력!$C$10 & "장 귀하",IF(RIGHT(데이터입력!$C$10,3)="교육청",데이터입력!$C$10 & "교육감 귀하",IF(RIGHT(데이터입력!$C$10,3)="지원청",데이터입력!$C$10 & "교육장 귀하",데이터입력!$C$10 & "장 귀하"))) -> 서울○○초등학교장 귀하 | P21: =IF(RIGHT(데이터입력!$C$10,2)="학교",데이터입력!$C$10 & "장 귀하",IF(RIGHT(데이터입력!$C$10,3)="교육청",데이터입력!$C$10 & "교육감 귀하",IF(RIGHT(데이터입력!$C$10,3)="지원청",데이터입력!$C$10 & "교육장 귀하",데이터입력!$C$10 & "장 귀하"))) -> 서울○○초등학교장 귀하 | Q21: =IF(RIGHT(데이터입력!$C$10,2)="학교",데이터입력!$C$10 & "장 귀하",IF(RIGHT(데이터입력!$C$10,3)="교육청",데이터입력!$C$10 & "교육감 귀하",IF(RIGHT(데이터입력!$C$10,3)="지원청",데이터입력!$C$10 & "교육장 귀하",데이터입력!$C$10 & "장 귀하"))) -> 서울○○초등학교장 귀하

Sheet 준공정산동의서
A1: 준 공 정 산 동 의 서
R2: 데이터입력시트로
A3: 공 사 명 | D3: =데이터입력!C9 -> ○○초 돌봄교실 설치공사
A4: 공사현장 | D4: =데이터입력!C10 -> 서울○○초등학교
B5: ◈ 동의 사항
B6: 1. 계 약 금 액
B7: 구 분 | E7: 당 초 | H7: 준 공 | M7: 감 액 | O7: 비 고
B8: 계약금액 | E8: =데이터입력!C25 -> 123456000 | H8: =데이터입력!C32 -> 113456000 | M8: =E8-H8 -> 10000000
B9: 2. 준공감액 사유
B11: =" 당사는 귀 기관과" -> 당사는 귀 기관과 | F11: 계약 체결하여 공사 완료한 본 공사에 대하여 상기 준공감액 내역
B12: 및 붙임 내역서와 같이 감액함에 동의하고 이의 없이 계약자로서의 의무를 성실히
B13: 이행할 것을 확약합니다.
B15: =데이터입력!E28 -> 2016-11-10
B17: 업 체 명 : | F17: =데이터입력!C18 -> ○○건설㈜
B18: 주 소 : | F18: =데이터입력!E19 -> 서울시 00구 00로 00길 000
B19: 대 표 자 : | F19: =데이터입력!E18 & " (인)" -> ○○○ (인)
B21: =IF(RIGHT(데이터입력!$C$10,2)="학교",데이터입력!$C$10 & "장 귀하",IF(RIGHT(데이터입력!$C$10,3)="교육청",데이터입력!$C$10 & "교육감 귀하",IF(RIGHT(데이터입력!$C$10,3)="지원청",데이터입력!$C$10 & "교육장 귀하",데이터입력!$C$10 & "장 귀하"))) -> 서울○○초등학교장 귀하 | C21: =IF(RIGHT(데이터입력!$C$10,2)="학교",데이터입력!$C$10 & "장 귀하",IF(RIGHT(데이터입력!$C$10,3)="교육청",데이터입력!$C$10 & "교육감 귀하",IF(RIGHT(데이터입력!$C$10,3)="지원청",데이터입력!$C$10 & "교육장 귀하",데이터입력!$C$10 & "장 귀하"))) -> 서울○○초등학교장 귀하 | D21: =IF(RIGHT(데이터입력!$C$10,2)="학교",데이터입력!$C$10 & "장 귀하",IF(RIGHT(데이터입력!$C$10,3)="교육청",데이터입력!$C$10 & "교육감 귀하",IF(RIGHT(데이터입력!$C$10,3)="지원청",데이터입력!$C$10 & "교육장 귀하",데이터입력!$C$10 & "장 귀하"))) -> 서울○○초등학교장 귀하 | E21: =IF(RIGHT(데이터입력!$C$10,2)="학교",데이터입력!$C$10 & "장 귀하",IF(RIGHT(데이터입력!$C$10,3)="교육청",데이터입력!$C$10 & "교육감 귀하",IF(RIGHT(데이터입력!$C$10,3)="지원청",데이터입력!$C$10 & "교육장 귀하",데이터입력!$C$10 & "장 귀하"))) -> 서울○○초등학교장 귀하 | F21: =IF(RIGHT(데이터입력!$C$10,2)="학교",데이터입력!$C$10 & "장 귀하",IF(RIGHT(데이터입력!$C$10,3)="교육청",데이터입력!$C$10 & "교육감 귀하",IF(RIGHT(데이터입력!$C$10,3)="지원청",데이터입력!$C$10 & "교육장 귀하",데이터입력!$C$10 & "장 귀하"))) -> 서울○○초등학교장 귀하 | G21: =IF(RIGHT(데이터입력!$C$10,2)="학교",데이터입력!$C$10 & "장 귀하",IF(RIGHT(데이터입력!$C$10,3)="교육청",데이터입력!$C$10 & "교육감 귀하",IF(RIGHT(데이터입력!$C$10,3)="지원청",데이터입력!$C$10 & "교육장 귀하",데이터입력!$C$10 & "장 귀하"))) -> 서울○○초등학교장 귀하 | H21: =IF(RIGHT(데이터입력!$C$10,2)="학교",데이터입력!$C$10 & "장 귀하",IF(RIGHT(데이터입력!$C$10,3)="교육청",데이터입력!$C$10 & "교육감 귀하",IF(RIGHT(데이터입력!$C$10,3)="지원청",데이터입력!$C$10 & "교육장 귀하",데이터입력!$C$10 & "장 귀하"))) -> 서울○○초등학교장 귀하 | I21: =IF(RIGHT(데이터입력!$C$10,2)="학교",데이터입력!$C$10 & "장 귀하",IF(RIGHT(데이터입력!$C$10,3)="교육청",데이터입력!$C$10 & "교육감 귀하",IF(RIGHT(데이터입력!$C$10,3)="지원청",데이터입력!$C$10 & "교육장 귀하",데이터입력!$C$10 & "장 귀하"))) -> 서울○○초등학교장 귀하 | J21: =IF(RIGHT(데이터입력!$C$10,2)="학교",데이터입력!$C$10 & "장 귀하",IF(RIGHT(데이터입력!$C$10,3)="교육청",데이터입력!$C$10 & "교육감 귀하",IF(RIGHT(데이터입력!$C$10,3)="지원청",데이터입력!$C$10 & "교육장 귀하",데이터입력!$C$10 & "장 귀하"))) -> 서울○○초등학교장 귀하 | K21: =IF(RIGHT(데이터입력!$C$10,2)="학교",데이터입력!$C$10 & "장 귀하",IF(RIGHT(데이터입력!$C$10,3)="교육청",데이터입력!$C$10 & "교육감 귀하",IF(RIGHT(데이터입력!$C$10,3)="지원청",데이터입력!$C$10 & "교육장 귀하",데이터입력!$C$10 & "장 귀하"))) -> 서울○○초등학교장 귀하 | L21: =IF(RIGHT(데이터입력!$C$10,2)="학교",데이터입력!$C$10 & "장 귀하",IF(RIGHT(데이터입력!$C$10,3)="교육청",데이터입력!$C$10 & "교육감 귀하",IF(RIGHT(데이터입력!$C$10,3)="지원청",데이터입력!$C$10 & "교육장 귀하",데이터입력!$C$10 & "장 귀하"))) -> 서울○○초등학교장 귀하 | M21: =IF(RIGHT(데이터입력!$C$10,2)="학교",데이터입력!$C$10 & "장 귀하",IF(RIGHT(데이터입력!$C$10,3)="교육청",데이터입력!$C$10 & "교육감 귀하",IF(RIGHT(데이터입력!$C$10,3)="지원청",데이터입력!$C$10 & "교육장 귀하",데이터입력!$C$10 & "장 귀하"))) -> 서울○○초등학교장 귀하 | N21: =IF(RIGHT(데이터입력!$C$10,2)="학교",데이터입력!$C$10 & "장 귀하",IF(RIGHT(데이터입력!$C$10,3)="교육청",데이터입력!$C$10 & "교육감 귀하",IF(RIGHT(데이터입력!$C$10,3)="지원청",데이터입력!$C$10 & "교육장 귀하",데이터입력!$C$10 & "장 귀하"))) -> 서울○○초등학교장 귀하 | O21: =IF(RIGHT(데이터입력!$C$10,2)="학교",데이터입력!$C$10 & "장 귀하",IF(RIGHT(데이터입력!$C$10,3)="교육청",데이터입력!$C$10 & "교육감 귀하",IF(RIGHT(데이터입력!$C$10,3)="지원청",데이터입력!$C$10 & "교육장 귀하",데이터입력!$C$10 & "장 귀하"))) -> 서울○○초등학교장 귀하 | P21: =IF(RIGHT(데이터입력!$C$10,2)="학교",데이터입력!$C$10 & "장 귀하",IF(RIGHT(데이터입력!$C$10,3)="교육청",데이터입력!$C$10 & "교육감 귀하",IF(RIGHT(데이터입력!$C$10,3)="지원청",데이터입력!$C$10 & "교육장 귀하",데이터입력!$C$10 & "장 귀하"))) -> 서울○○초등학교장 귀하

Sheet 대금청구서
B2: 대 금 청 구 서
R3: 데이터입력시트로
B4: 1. 계 약 건 명 : | C4: =" "&데이터입력!C9 -> ○○초 돌봄교실 설치공사
B6: 2. 계 약 금 액 : | C6: =데이터입력!C25 -> 123456000 | F6: ="(금 "&NUMBERSTRING(C6,1)&" 원정)" -> (금 일억이천삼백사십오만육천 원정)
B8: 3. 준 공 금 액 : | C8: =C6 -> 123456000 | F8: ="(금 "&NUMBERSTRING(C8,1)&" 원정)" -> (금 일억이천삼백사십오만육천 원정)
B10: 4. 기 지 급 액 : | C10: =공사대장!J16+공사대장!J17+공사대장!J18+공사대장!J19 -> 0 | F10: ="(금 "&NUMBERSTRING(C10,1)&" 원정)" -> (금 영 원정)
B12: 5. 청 구 금 액 : | C12: =C8-C10-C14 -> 113456000 | F12: ="(금 "&NUMBERSTRING(C12,1)&" 원정)" -> (금 일억일천삼백사십오만육천 원정)
B14: 6. 공 제 금 액 : | C14: =준공정산동의서!M8 -> 10000000 | F14: ="(금 "&NUMBERSTRING(C14,1)&" 원정)" -> (금 일천만 원정)
B16: 위와 같이 청구하오니 아래 계좌에 입금하여 주시기 바랍니다.
B18: □ 지정계좌현황
B20: 은 행 명 | D20: =데이터입력!E21 -> 00은행
B21: 계 좌 번 호 | D21: =데이터입력!E22 -> 000-000000-00-000
B22: 예 금 주 명 | D22: =데이터입력!C18 -> ○○건설㈜
D24: =데이터입력!C31 -> 2016-11-10
C26: 회 사 명 : | E26: =데이터입력!C18 -> ○○건설㈜
C27: 주 소 : | E27: =데이터입력!E19 -> 서울시 00구 00로 00길 000
C28: 대 표 자 : | E28: =데이터입력!E18 & " (인)" -> ○○○ (인)
B30: ※ 계약도장과 청구서의 도장이 다를 경우 인감증명 및 사용인감신고서 제출
B32: =IF(RIGHT(데이터입력!$C$10,2)="학교",데이터입력!$C$10 & "장 귀하",IF(RIGHT(데이터입력!$C$10,3)="교육청",데이터입력!$C$10 & "교육감 귀하",IF(RIGHT(데이터입력!$C$10,3)="지원청",데이터입력!$C$10 & "교육장 귀하",데이터입력!$C$10 & "장 귀하"))) -> 서울○○초등학교장 귀하 | C32: =IF(RIGHT(데이터입력!$C$10,2)="학교",데이터입력!$C$10 & "장 귀하",IF(RIGHT(데이터입력!$C$10,3)="교육청",데이터입력!$C$10 & "교육감 귀하",IF(RIGHT(데이터입력!$C$10,3)="지원청",데이터입력!$C$10 & "교육장 귀하",데이터입력!$C$10 & "장 귀하"))) -> 서울○○초등학교장 귀하 | D32: =IF(RIGHT(데이터입력!$C$10,2)="학교",데이터입력!$C$10 & "장 귀하",IF(RIGHT(데이터입력!$C$10,3)="교육청",데이터입력!$C$10 & "교육감 귀하",IF(RIGHT(데이터입력!$C$10,3)="지원청",데이터입력!$C$10 & "교육장 귀하",데이터입력!$C$10 & "장 귀하"))) -> 서울○○초등학교장 귀하 | E32: =IF(RIGHT(데이터입력!$C$10,2)="학교",데이터입력!$C$10 & "장 귀하",IF(RIGHT(데이터입력!$C$10,3)="교육청",데이터입력!$C$10 & "교육감 귀하",IF(RIGHT(데이터입력!$C$10,3)="지원청",데이터입력!$C$10 & "교육장 귀하",데이터입력!$C$10 & "장 귀하"))) -> 서울○○초등학교장 귀하 | F32: =IF(RIGHT(데이터입력!$C$10,2)="학교",데이터입력!$C$10 & "장 귀하",IF(RIGHT(데이터입력!$C$10,3)="교육청",데이터입력!$C$10 & "교육감 귀하",IF(RIGHT(데이터입력!$C$10,3)="지원청",데이터입력!$C$10 & "교육장 귀하",데이터입력!$C$10 & "장 귀하"))) -> 서울○○초등학교장 귀하 | G32: =IF(RIGHT(데이터입력!$C$10,2)="학교",데이터입력!$C$10 & "장 귀하",IF(RIGHT(데이터입력!$C$10,3)="교육청",데이터입력!$C$10 & "교육감 귀하",IF(RIGHT(데이터입력!$C$10,3)="지원청",데이터입력!$C$10 & "교육장 귀하",데이터입력!$C$10 & "장 귀하"))) -> 서울○○초등학교장 귀하 | H32: =IF(RIGHT(데이터입력!$C$10,2)="학교",데이터입력!$C$10 & "장 귀하",IF(RIGHT(데이터입력!$C$10,3)="교육청",데이터입력!$C$10 & "교육감 귀하",IF(RIGHT(데이터입력!$C$10,3)="지원청",데이터입력!$C$10 & "교육장 귀하",데이터입력!$C$10 & "장 귀하"))) -> 서울○○초등학교장 귀하 | I32: =IF(RIGHT(데이터입력!$C$10,2)="학교",데이터입력!$C$10 & "장 귀하",IF(RIGHT(데이터입력!$C$10,3)="교육청",데이터입력!$C$10 & "교육감 귀하",IF(RIGHT(데이터입력!$C$10,3)="지원청",데이터입력!$C$10 & "교육장 귀하",데이터입력!$C$10 & "장 귀하"))) -> 서울○○초등학교장 귀하 | J32: =IF(RIGHT(데이터입력!$C$10,2)="학교",데이터입력!$C$10 & "장 귀하",IF(RIGHT(데이터입력!$C$10,3)="교육청",데이터입력!$C$10 & "교육감 귀하",IF(RIGHT(데이터입력!$C$10,3)="지원청",데이터입력!$C$10 & "교육장 귀하",데이터입력!$C$10 & "장 귀하"))) -> 서울○○초등학교장 귀하 | K32: =IF(RIGHT(데이터입력!$C$10,2)="학교",데이터입력!$C$10 & "장 귀하",IF(RIGHT(데이터입력!$C$10,3)="교육청",데이터입력!$C$10 & "교육감 귀하",IF(RIGHT(데이터입력!$C$10,3)="지원청",데이터입력!$C$10 & "교육장 귀하",데이터입력!$C$10 & "장 귀하"))) -> 서울○○초등학교장 귀하 | L32: =IF(RIGHT(데이터입력!$C$10,2)="학교",데이터입력!$C$10 & "장 귀하",IF(RIGHT(데이터입력!$C$10,3)="교육청",데이터입력!$C$10 & "교육감 귀하",IF(RIGHT(데이터입력!$C$10,3)="지원청",데이터입력!$C$10 & "교육장 귀하",데이터입력!$C$10 & "장 귀하"))) -> 서울○○초등학교장 귀하 | M32: =IF(RIGHT(데이터입력!$C$10,2)="학교",데이터입력!$C$10 & "장 귀하",IF(RIGHT(데이터입력!$C$10,3)="교육청",데이터입력!$C$10 & "교육감 귀하",IF(RIGHT(데이터입력!$C$10,3)="지원청",데이터입력!$C$10 & "교육장 귀하",데이터입력!$C$10 & "장 귀하"))) -> 서울○○초등학교장 귀하 | N32: =IF(RIGHT(데이터입력!$C$10,2)="학교",데이터입력!$C$10 & "장 귀하",IF(RIGHT(데이터입력!$C$10,3)="교육청",데이터입력!$C$10 & "교육감 귀하",IF(RIGHT(데이터입력!$C$10,3)="지원청",데이터입력!$C$10 & "교육장 귀하",데이터입력!$C$10 & "장 귀하"))) -> 서울○○초등학교장 귀하 | O32: =IF(RIGHT(데이터입력!$C$10,2)="학교",데이터입력!$C$10 & "장 귀하",IF(RIGHT(데이터입력!$C$10,3)="교육청",데이터입력!$C$10 & "교육감 귀하",IF(RIGHT(데이터입력!$C$10,3)="지원청",데이터입력!$C$10 & "교육장 귀하",데이터입력!$C$10 & "장 귀하"))) -> 서울○○초등학교장 귀하 | P32: =IF(RIGHT(데이터입력!$C$10,2)="학교",데이터입력!$C$10 & "장 귀하",IF(RIGHT(데이터입력!$C$10,3)="교육청",데이터입력!$C$10 & "교육감 귀하",IF(RIGHT(데이터입력!$C$10,3)="지원청",데이터입력!$C$10 & "교육장 귀하",데이터입력!$C$10 & "장 귀하"))) -> 서울○○초등학교장 귀하

Sheet 수도전기료계산식
A2: [공사명] | C2: =데이터입력!C9 -> ○○초 돌봄교실 설치공사
A4: □ 2016년도 기준 완성공사 원가통계(경비율)
V5: (단위: %)
A6: 구분 | B6: 공사종류별 | H6: 공사기간별 | P6: 공사규모별
B7: 건축 | C7: 토목 | D7: 산업설비 | F7: 조경 | H7: 6개월이하 | J7: 6개월초과 ~ 12개월이하 | L7: 12개월초과 ~ 36개월이하 | N7: 36개월초과 | P7: 5억미만 | R7: 5~30억 미만 | T7: 30~50억 미만 | U7: 50~300 억미만 | V7: 300~1,000억미만 | X7: 데이터입력시트로
A8: 전기료 | B8: 0.275 | C8: 0.196 | D8: 0.121 | F8: 0.062 | H8: 0.115 | J8: 0.21 | L8: 0.263 | N8: 0.34 | P8: 0.098 | R8: 0.152 | T8: 0.258 | U8: 0.353 | V8: 0.257
A9: 수도료 | B9: 0.477 | C9: 0.794 | D9: 0.512 | F9: 0.173 | H9: 0.138 | J9: 0.254 | L9: 0.536 | N9: 0.858 | P9: 0.093 | R9: 0.229 | T9: 0.346 | U9: 0.66 | V9: 0.751
A10: ※ 공사종류에서 전기,통신,소방,전문공사는 건축요율 적용
A11: ※ 공사규모 금액은 공사 계약금액 기준(부가세포함)
A12: ※ 출처: 대한건설협회 '완성공사원가분석'(2016.9.발표)
A14: □ 전기,수도료 계산식
A17: ㅇ 공사내용 기입 : | D17: 공사종류 | F17: 건축 | I17: 공사, | J17: 공사기간 | L17: 6이하 | N17: 개월,
D18: 계약금액 | F18: =(데이터입력!C25/1000) -> 123456 | H18: 천원, | J18: 직접재료비 | L18: 4201 | N18: 천원, | P18: 직접노무비 | R18: 8606 | T18: 천원
A21: 1. 전기료 = ( | C21: 직,재 | D21: + | E21: 직,노 | G21: ) × ( ( | I21: 공사종류 | K21: + | L21: 공사기간 | N21: + | O21: 공사규모 | Q21: ) / 3 )
B23: = ( | C23: =L18 -> 4201 | D23: + | E23: =R18 -> 8606 | G23: ) × ( ( | I23: =HLOOKUP(F17, $B$7:$G$8, 2, 0)/100 -> 0.00275 | K23: + | L23: =IF($L$17="6이하", $H$8/100, IF($L$17="6초과12이하", $J$8/100, IF($L$17="12초과36이하", $L$8/100, IF($L$17="36초과", $N$8/100)))) -> 0.00115 | N23: + | O23: =IF($F$18<500000, $P$8/100, IF($F$18<3000000, $R$8/100, IF($F$18<5000000, $T$8/100, IF($F$18<30000000, $U$8/100, IF($F$18<100000000, $V$8/100))))) -> 0.00098 | Q23: ) / 3 ) | S23: = | T23: =ROUNDDOWN(((C23+E23)*1000)*((I23+L23+O23)/3),-1) -> 20830 | V23: 원
A25: 2. 수도료 = ( | C25: 직,재 | E25: 직,노 | G25: ) × ( ( | I25: 공사종류 | L25: 공사기간 | N25: + | O25: 공사규모 | Q25: ) / 3 )
B27: = ( | C27: =L18 -> 4201 | D27: + | E27: =R18 -> 8606 | G27: ) × ( ( | I27: =HLOOKUP(F17, $B$7:$G$9, 3, 0)/100 -> 0.00477 | K27: + | L27: =IF($L$17="6이하", $H$9/100, IF($L$17="6초과12이하", $J$9/100, IF($L$17="12초과36이하", $L$9/100, IF($L$17="36초과", $N$9/100)))) -> 0.00138 | N27: + | O27: =IF($F$18<500000, $P$9/100, IF($F$18<3000000, $R$9/100, IF($F$18<5000000, $T$9/100, IF($F$18<30000000, $U$9/100, IF($F$18<100000000, $V$9/100))))) -> 0.00093 | Q27: ) / 3 ) | S27: = | T27: =ROUNDDOWN(((C27+E27)*1000)*((I27+L27+O27)/3),-1) -> 30220 | V27: 원

Sheet 공사대장
A1: 공 사 대 장
K2: 계약번호 : | L2: =YEAR(데이터입력!C26) & "년-" -> 2016년- | M2: =데이터입력!C33 -> 12
A3: 공사명 | B3: =데이터입력!C9 -> ○○초 돌봄교실 설치공사 | H3: 도급자 | I3: =데이터입력!C18 -> ○○건설㈜ | L3: 공사감독 성 명 | M3: =데이터입력!C12 -> 행정실장 ○○○ | P3: 데이터입력시트로
A4: 계약 금액 | B4: =B6 -> 123456000 | F4: 계약 방법 | G4: =데이터입력!E35 -> 수의(1인) | H4: 전화번호 | I4: =데이터입력!C19 -> 02-0000-0000
B6: =데이터입력!C25 -> 123456000 | H6: 계약 | I6: =데이터입력!C26 -> 2016-10-16
A8: 설계 변경 증감 | B8: 년 월 일 | D8: 증감액 | E8: 변경금액 | G8: 지 출 과 목 | H8: 정책사업 | I8: =데이터입력!E10 -> 학교교육여건개선시설
H9: 단위사업 | I9: =데이터입력!E11 -> 교육환경개선시설
H10: 세부사업 | I10: =데이터입력!E12 -> 학교시설교육환경개선
A11: 공 사 내 용 | H11: 세부항목 | I11: =데이터입력!E13 -> 학교회계전출금
H12: 원가통계목 | I12: =데이터입력!E14 -> 시설비
H13: 산출내역
G14: 재원 | H14: =데이터입력!E9 -> 학교회계
A15: 계약내용 | B15: 계약보증금 | D15: =데이터입력!E25 -> 18518400 | E15: =데이터입력!E27 -> 지급각서 | G15: 지 급 내 역 | H15: 회수 | I15: 년월일 | J15: 지급금액 | L15: 잔액
B16: 공 정 | H16: 선급금
B17: 구분 | D17: 계약상년월일 | E17: 실제년월일 | H17: 제1회
B18: 착공 | D18: =데이터입력!C27 -> 2016-10-20 | E18: =데이터입력!C28 -> 2016-10-20 | H18: 제2회
B19: 준공 | D19: =데이터입력!C29 -> 2016-11-18 | E19: =데이터입력!C30 -> 2016-11-18 | H19: 제3회
B20: 변경준공 | H20: 준공급 | I20: =데이터입력!C34 -> 2016-06-12
B21: 준공정산금 | D21: =데이터입력!C32 -> 113456000 | G21: 검 사 내 역 | H21: 회수 | I21: 년월일 | J21: 전액 | K21: 공정 | L21: 검사자 | M21: 입회자
B22: 하자담보 | D22: 시작일 : | E22: =데이터입력!E28 -> 2016-11-10 | H22: 선급금
D23: 종료일 : | E23: =데이터입력!E29 -> 2017-11-09 | H23: 제1회
D24: 보증금 | H24: 제2회
D25: =데이터입력!E33 -> 3703680 | H25: 제3회
D26: =데이터입력!E34 -> 이행보증증권 | H26: 준공급 | I26: =데이터입력!C31 -> 2016-11-10 | K26: 1

Sheet 하자검사조서
B2: 하 자 검 사 조 서
B4: 공 사 명 | C4: =데이터입력!C9 -> ○○초 돌봄교실 설치공사 | J4: 데이터입력시트로
B5: 도 급 자 | C5: 회 사 명 | D5: =데이터입력!C18 -> ○○건설㈜ | G5: 공 종
C6: 대 표 | D6: =데이터입력!E18 -> ○○○ | G6: =데이터입력!C20 -> 건축공사
B7: 도 급 금 액 | C7: =데이터입력!C25 -> 123456000 | F7: 준 공 일 | G7: =데이터입력!C30 -> 2016-11-18
B8: 공 사 기 간 | C8: =데이터입력!C28 -> 2016-10-20 | D8: ~ | E8: =데이터입력!C30 -> 2016-11-18 | F8: 하자만료일 | G8: =데이터입력!E29 -> 2017-11-09
B9: 하자발생내용
B10: 처 리 사 항
B11: 기타참고사항
B13: 위와같이 하자(만료)검사를 필하였음.
D15: 20 . . .
C17: 검 사 자 : | D17: =데이터입력!C10 & " " & 데이터입력!C12 & " (인)" -> 서울○○초등학교 행정실장 ○○○ (인)
C18: 입 회 자 :

Sheet 하자대장
A1: 하 자 검 사 대 장
A3: 1. 공사내역 | P3: 데이터입력시트로
A4: 공사명 | B4: =데이터입력!C9 -> ○○초 돌봄교실 설치공사 | D4: 계약금액 | E4: =데이터입력!C25 -> 123456000 | H4: 하자보증금 | K4: =데이터입력!E33 -> 3703680
K5: =데이터입력!E34 -> 이행보증증권
A6: 설계자 | B6: =데이터입력!E36 -> ○○설계사무소 | D6: 계약년월일 | E6: =데이터입력!C26 -> 2016-10-16 | H6: 준공기한 | K6: =데이터입력!C29 -> 2016-11-18
A7: 도급자 | B7: =데이터입력!C18 -> ○○건설㈜ | D7: 착공년월일 | E7: =데이터입력!C28 -> 2016-10-20 | H7: 준공년월일 | K7: =데이터입력!C30 -> 2016-11-18
A8: 감독관 | B8: =데이터입력!C12 -> 행정실장 ○○○ | D8: 준공검사일 | E8: =데이터입력!C31 -> 2016-11-10 | H8: 하자보증기간 | M8: =데이터입력!E28 -> 2016-11-10
L9: ~ | M9: =데이터입력!E29 -> 2017-11-09
A10: 2. 정기 하자검사 내역
A11: 하자검사 년 월 일 | B11: 하자검사 내용 및 조치사항 | D11: 하자검사자 | H11: 결 재
D12: 성 명 | G12: (인) | H12: 계 | J12: 행정실장 | N12: 교 장

Sheet 관련법령
A1: ○ 지방자치단체를 당사자로 하는 계약에 관한 법률 시행령
A2: 제51조(계약의 이행보증) ① 지방자치단체의 장 또는 계약담당자는 공사계약을 체결하려는 경우 계약상대자에게 다음 각 호의 방법 중 어느 하나를 선택하여 계약의 이행을 보증하게 하여야 한다. 다만, 지방자치단체의 장 또는 계약담당자는 공사계약의 특성상 필요하다고 인정되는 경우에는 제2호에 따른 방법으로 한정할 수 있으며, 제42조제1항제1호, 제6장 및 제9장에 따른 공사계약인 경우에는 반드시 제2호에 따른 방법으로 계약의 이행을 보증하게 하여야 한다. <개정 2010.7.26>
A3: 1. 계약보증금을 계약금액의 100분의 15 이상 내는 방법
A4: 2. 계약보증금을 내지 아니하고 공사이행보증서[해당 공사의 계약상 의무를 이행할 것을 보증한 기관이 계약상대자를 대신하여 계약상의 의무를 이행하지 아니하는 경우에는 계약금액의 100분의 40(예정가격의 100분의 70 미만으로 낙찰된 공사계약의 경우에는 계약금액의 100분의 50을 말한다) 이상을 낼 것을 보증하는 것이어야 한다]를 제출하는 방법
A5: ② 지방자치단체의 장 또는 계약담당자는 제1항 본문에 따라 계약이행을 보증한 경우로서 계약상대자가 계약이행보증방법의 변경을 요청하는 경우에는 한 차례만 변경하게 할 수 있다. <개정 2010.7.26> | C5: 데이터입력시트로
A6: ③ 삭제 <2010.7.26>
A7: ④ 행정자치부장관은 제1항제2호에 따른 공사이행보증서의 제출 등에 필요한 사항을 정할 수 있다. <개정 2010.7.26, 2013.3.23, 2014.11.19.>
A8: ⑤ 지방자치단체의 장 또는 계약담당자는 공사를 제외한 물품·용역 등의 계약을 체결하는 경우에는 계약보증금으로 계약금액의 100분의 10 이상을 내게 하여야 한다. 다만, 계약상대자와 합의가 이루어진 경우에는 제1항을 준용할 수 있다. <개정 2010.7.26>
A9: ⑥ 단가계약에 의하는 경우로서 여러 차례로 분할하여 계약을 이행하게 할 때에는 제5항에도 불구하고 매회별 이행예정량 중 최대량에 계약단가를 곱한 금액의 100분의 10 이상을 계약보증금으로 내게 하여야 한다. <개정 2010.7.26>
A10: ⑦ 장기계속계약의 경우에는 제1차 계약체결 시 덧붙여 적은 총공사 또는 총제조 등의 금액을 기준으로 하여 제1항 또는 제5항에 따라 계약이행을 보증하게 하여야 한다. 이 경우 해당 계약보증금은 총공사 또는 총제조 등의 계약보증금으로 보며, 연차별 계약이 완료되었을 때에는 원래의 계약보증금에서 이행이 끝난 연차별 계약금액의 100분의 10(공사계약의 경우로서 제1항제1호 및 제2호에 해당하는 경우에는 각 호에서 정한 비율을 말한다)을 반환하여야 한다. <개정 2010.7.26>
A12: 제53조(계약보증금 면제) ① 법 제15조제1항 단서에 따라 계약보증금을 면제할 수 있는 경우는 다음 각 호와 같다. <개정 2011.9.15.>
A13: 1. 제37조제3항제1호부터 제5호까지 및 제6호의2에 규정된 자와 계약을 체결하는 경우
A14: 2. 계약금액이 5천만원 이하인 계약을 체결하는 경우
A15: 3. 일반적으로 공정·타당하다고 인정되는 계약의 관습에 따라 계약보증금 징수가 적합하지 아니한 경우
A16: 4. 이미 도입된 외자(外資)시설·기계·장비의 부분품을 구매하는 경우로서 해당 공급자가 아니면 그 부분품의 구입이 곤란한 경우
A17: ② 지방자치단체의 장 또는 계약담당자는 제1항에 따라 계약보증금의 납부를 면제받은 자에게 법 제15조제3항에 따른 계약보증금의 세입조치 사유가 발생한 경우 계약보증금에 해당하는 금액을 낼 것을 보장하기 위하여 그 지급을 확약하는 내용의 문서(이하 이 조에서 "확약서"라 한다)를 제출하게 하여야 한다. 다만, 제1항제3호에 해당하는 경우에는 확약서 제출을 생략하게 할 수 있다.
A18: [전문개정 2010.7.26.]
A20: 제54조(계약보증금의 세입조치) ① 지방자치단체의 장 또는 계약담당자는 계약상대자가 정당한 이유 없이 계약상의 의무를 이행하지 아니하면 제51조에 따른 계약보증금을 법 제15조제3항에 따라 지방자치단체에 세입조치하여야 한다.
A21: ② 장기계속계약에서 계약상대자가 제78조제2항 후단과 같은 조 제3항에 따른 2차 이후의 공사 또는 제조 등의 계약을 체결하지 아니한 경우에는 제1항을 준용한다.
A22: ③ 제1항과 제2항에 따라 계약보증금을 지방자치단체에 세입조치할 때 그 계약보증금은 기성(旣成) 부분에 대한 미지급액과 상계(相計) 처리해서는 아니 된다. 다만, 제53조에 따라 계약보증금이 면제되는 경우에는 그러하지 아니하다.
A23: ④ 계약보증금을 세입조치할 경우에는 제38조를 준용한다.
A24: ⑤ 법 제25조에 따른 단가계약으로서 여러 차례로 분할하여 계약을 이행하는 경우에는 당초의 계약보증금 중 이행이 완료된 분에 해당하는 계약보증금은 지방자치단체에 귀속하지 아니한다. <신설 2014.11.24.>
A26: 제71조(하자보수보증금) ① 법 제21조에 따른 하자보수보증금은 행정자치부령으로 정하는 바에 따라 계약금액의 100분의 2 이상 100분의 10 이하로 하여야 한다. 다만, 계약의 성질상 하자보수가 필요하지 아니한 경우로서 행정자치부령으로 정하는 경우에는 하자보수보증금을 내지 아니하게 할 수 있다. <개정 2013.3.23., 2014.11.19.>
A27: ② 지방자치단체의 장 또는 계약담당자는 계약목적물에 대하여 제64조제1항에 따른 검사를 완료한 때부터 계약의 대금을 지급하기 전까지 제1항에 따른 하자보수보증금을 내게 하고 이를 제69조에 따른 담보책임의 존속기간 동안 보관하여야 한다.
A28: ③ 장기계속계약의 경우에는 연차계약별로 대금을 지급하기 전까지 제1항 및 제2항에 따라 하자보수보증금을 내게 하여야 한다. 다만, 연차계약별로 하자담보책임을 구분할 수 없는 경우에는 전체 목적물에 대하여 제64조제1항에 따른 검사를 완료하고 나서 하자보수보증금을 내게 하여야 한다.
A29: ④ 법 제21조제1항 단서에 따라 하자보수보증금의 납부를 면제할 수 있는 경우는 다음 각 호와 같다.
A30: 1. 제25조제1항제7호나목에 따른 계약을 체결한 경우
A31: 2. 제37조제3항제1호부터 제5호까지에 규정된 자와 계약을 체결한 경우
A32: ⑤ 하자보수보증금의 납부 및 지방자치단체 세입조치의 경우에는 제37조제2항·제4항 및 제38조를 준용한다.
A33: [전문개정 2010.7.26.]
A35: ○ 건설산업기본법 시행령
A36: 제30조의2(건설공사의 직접시공)
A37: ① 법 제28조의2제1항 본문에서 "대통령령으로 정하는 금액 미만인 건설공사"란 도급금액이 50억원 미만인 건설공사를 말한다. <개정 2011.11.1> | C37: 데이터입력시트로
A38: ② 법 제28조의2제1항 본문에서 "대통령령으로 정하는 비율"이란 다음 각 호의 구분에 따른 비율을 말한다. <개정 2011.11.1>
A39: 1. 도급금액이 3억원 미만인 경우: 100분의 50
A40: 2. 도급금액이 3억원 이상 10억원 미만인 경우: 100분의 30
A41: 3. 도급금액이 10억원 이상 30억원 미만인 경우: 100분의 20
A42: 4. 도급금액이 30억원 이상 50억원 미만인 경우: 100분의 10
A43: ③법 제28조의2제1항 단서에서 "대통령령으로 정하는 경우"란 다음 각 호의 어느 하나에 해당하는 경우를 말한다. <개정 2011.11.1, 2012.6.21>
A44: 1. 발주자가 공사의 품질이나 시공상 능률을 높이기 위하여 필요하다고 인정하여 서면으로 승낙한 경우
A45: 2. 수급인이 도급받은 건설공사 중 특허 또는 신기술이 사용되는 부분을 그 특허 또는 신기술을 사용할 수 있는 건설업자에게 하도급하는 경우
A46: ④법 제28조의2제2항에 따른 직접시공계획의 통보는 국토교통부령으로 정하는 바에 따라 도급계약을 체결한 날부터 30일 이내에 하여야 한다. 다만, 법 제28조의2제1항에 따라 직접 시공하는 건설공사가 다음 각 호의 요건을 모두 갖춘 경우에는 해당 공사의 직접시공계획을 통보하지 아니할 수 있다. <개정 2007.12.28, 2008.2.29, 2011.11.1, 2013.3.23>
A47: 1. 1건 공사의 도급금액이 4천만원 미만일 것
A48: 2. 공사기간이 30일 이내일 것
A49: ⑤감리자가 있는 건설공사로서 도급계약을 체결한 자가 제4항의 규정에 의한 기한내에 감리자에게 직접시공계획을 통보한 경우에는 이를 발주자에게 통보한 것으로 본다.
A50: [본조신설 2005.6.30]
A52: ○ 지방자치단체를 당사자로 하는 계약에 관한 법률 시행규칙
A53: 제70조(하자보수보증금률) ① 지방자치단체의 장 또는 계약담당자는 계약을 체결할 때 영 제71조제1항 본문에 따라 다음 각 호 구분에 따른 계약금액에 대한 하자보수보증금률을 정하여야 한다. 이 경우 각 공종 간의 하자책임을 구분할 수 없는 복합공사인 경우에는 주된 공종을 기준으로 한다.
A54: 1. 철도, 댐, 터널, 철강교설치, 발전설비, 교량, 상하수도구조물 등 중요 구조물공사 및 조경공사: 100분의 5 | C54: 데이터입력시트로
A55: 2. 공항, 항만, 삭도설치, 방파제, 사방, 간척 등 공사: 100분의 4
A56: 3. 관개수로, 도로(포장공사를 포함한다), 매립, 상하수도관로, 하천, 일반건축 등 공사: 100분의 3
A57: 4. 제1호부터 제3호까지의 공사 외의 공사: 100분의 2
A58: 5. 물품의 제조: 100분의 3
A59: 6. 수리, 가공, 구매, 용역: 100분의 2
A60: ② 영 제71조제1항 단서에 따라 하자보수보증금을 납부하지 아니하게 할 수 있는 경우는 다음 각 호의 어느 하나에 해당하는 공사로 한다.
A61: 1. 「건설산업기본법 시행령」 별표 1에 따른 건설업종의 업무내용 중 구조물 등을 해체하는 공사 및 철도·궤도공사(레일용접공사와 콘크리트직결도상 철도·궤도공사는 제외한다)
A62: 2. 단순암반절취공사, 모래·자갈채취공사 등 그 공사의 성질상 하자보수가 필요하지 아니하다고 지방자치단체의 장 또는 계약담당자가 인정하는 공사
A63: 3. 계약금액이 3천만원을 초과하지 아니하는 공사(조경공사는 제외한다)
A64: [전문개정 2010.11.5]
A66: 제75조(지연배상금률) 영 제90조제1항에 따른 지연배상금률은 다음 각 호와 같다.
A67: 1. 공사: 1000분의 1
A68: 2. 물품의 제조·구매(영 제16조제3항에 따라 소프트웨어사업 시 물품과 용역을 한꺼번에 입찰에 부치는 경우를 포함한다): 1000분의 1.5
A69: 3. 물품의 수리·가공·대여, 용역(영 제16조제3항에 따라 소프트웨어사업 시 물품과 용역을 한꺼번에 입찰에 부치는 경우 그 용역은 제외한다), 그 밖의 계약: 1000분의 2.5
A70: 4. 운송·보관 및 양곡가공: 1000분의 5
A71: [전문개정 2010.11.5]
A73: 제68조(담보책임의 존속기간) ① 지방자치단체의 장 또는 계약담당자는 영 제69조제1항 본문에 따라 공사계약을 체결할 때에는 별표 1의 공종 구분에 따라 담보책임의 존속기간을 정하여야 한다. 다만, 각 공종 간의 하자책임을 구분할 수 없는 복합공사인 경우에는 주된 공종을 기준으로 하여 담보책임의 존속기간을 정하여야 한다.
A74: ② 영 제69조제1항 단서에 따라 담보책임의 존속기간을 정하지 아니하는 경우는 제70조제2항 각 호에 규정된 공사로 한다.[전문개정 2010.11.5] | C74: 데이터입력시트로
A76: [별표 1] <개정 2014.2.7>
A77: 공사의 공종별 담보책임의 존속기간(제68조 관련)
A78: 공 종 | B78: 담보책임 존속기간
A79: 1. 「건설산업기본법」에 따른 건설공사
A80: 가. 교량
A81: 1) 기둥 사이의 거리가 50m 이상이거나 길이 500m 이상인 교량의 철근콘크리트 또는 철골구조부 | B81: 10
A82: 2) 길이 500m 미만인 교량의 철근콘크리트 또는 철골구조부 | B82: 7
A83: 3) 교량 중 교면포장, 이음부, 난간시설 등 1) 및 2) 외의 공종 | B83: 2
A84: 나. 터널
A85: 1) 터널(지하철을 포함한다)의 철근콘크리트 또는 철골구조부 | B85: 10
A86: 2) 1) 외의 시설 | B86: 5
A87: 다. 철도
A88: 1) 교량 및 터널을 제외한 철도시설 중 철근콘크리트 또는 철골구조부 | B88: 7
A89: 2) 1) 외의 시설 | B89: 5
A90: 라. 공항 및 삭도
A91: 1) 철근콘크리트 또는 철골구조부 | B91: 7
A92: 2) 1) 외의 시설 | B92: 5
A93: 마. 항만, 사방 또는 간척
A94: 1) 철근콘크리트 또는 철골구조부 | B94: 7
A95: 2) 1) 외의 시설 | B95: 5
A96: 바. 도로(암거, 측구를 포함한다) | B96: 2
A97: 사. 댐
A98: 1) 본체 또는 여수로 부분 | B98: 10
A99: 2) 1) 외의 시설 | B99: 5
A100: 아. 상수도·하수도
A101: 1) 철근콘크리트 또는 철골구조부 | B101: 7
A102: 2) 관로 매설 또는 기기 설치 | B102: 3
A103: 자. 관개수로 또는 매립 | B103: 3
A104: 차. 부지정지 | B104: 2
A105: 카. 조경시설물 또는 조경식재 | B105: 2
A106: 타. 발전·가스 또는 산업설비
A107: 1) 철근콘크리트 또는 철골구조부 | B107: 7
A108: 2) 압력이 1제곱센티미터당 10킬로그램 이상인 고압가스의 관로(부대기기를 포함한다) 설치 | B108: 5
A109: 3) 1) 및 2) 외의 시설 | B109: 3
A110: 파. 그 밖의 토목공사 | B110: 1
A111: 하. 건축
A112: 1) 대형 공공성 건축물(공동주택, 종합병원, 관광숙박시설, 관람집회시설 또는 대규모 소매점과 l6층 이상의 그 밖의 용도의 건축물을 말한다. 이하 이 목에서 같다)의 기둥 또는 내력벽 | B112: 10
A113: 2) 대형 공공성 건축물 중 기둥, 내력벽 외의 주요 구조부 또는 1) 외의 건축물 중 주요 구조부 | B113: 5
A114: 3) 건축물 중 1) 및 2)와 거목의 전문공사를 제외한 그 밖의 부분 | B114: 1
A115: 거. 전문공사
A116: 1) 실내의장 | B116: 1
A117: 2) 토공 | B117: 2
A118: 3) 미장 또는 타일 | B118: 1
A119: 4) 방수 | B119: 3
A120: 5) 도장 | B120: 1
A121: 6) 석공사 또는 조적 | B121: 2
A122: 7) 창호 설치 | B122: 1
A123: 8) 지붕 | B123: 3
A124: 9) 철물(가목부터 아목까지 및 자목부터 하목까지에 해당하는 철골은 제외한다) | B124: 2
A125: 10) 철근콘크리트(가목부터 아목까지 및 자목부터 하목까지에 해당하는 철근콘크리트는 제외한다) | B125: 3
A126: 11) 급배수, 공동구, 지하저수조, 냉난방, 환기, 공기조화, 자동제어, 가스 또는 배연설비 | B126: 2
A127: 12) 승강기 또는 인양기기설비 | B127: 3
A128: 13) 온실 설치 | B128: 2
A129: 14) 보링 | B129: 1
A130: 15) 건축물 조립(건축물의 기둥 및 내력벽의 조립은 제외하며, 이는 하목에 따른다) | B130: 1
A131: 16) 판금 | B131: 1
A132: 17) 보일러 설치 | B132: 1
A133: 18) 포장 | B133: 2
A134: 19) 11) 및 17) 외의 건물 내 설비 | B134: 2
A135: 20) 자갈도상 철도 · 궤도 공사 | B135: 1
A136: 2. 「전기공사업법」에 따른 전기공사
A137: 가. 발전설비공사
A138: 1) 철근콘크리트 또는 철골구조부 | B138: 7
A139: 2) 1) 외의 시설공사 | B139: 3
A140: 나. 터널식 및 개착식 전력구 송배전설비공사
A141: 1) 철근콘크리트 또는 철골구조부 | B141: 10
A142: 2) 1) 외의 송전설비공사 | B142: 5
A143: 3) 1) 외의 배전설비공사 | B143: 2
A144: 다. 지중 송배전설비공사
A145: 1) 송전설비공사(케이블공사 및 물밑송전설비공사를 포함한다) | B145: 5
A146: 2) 배전설비공사 | B146: 3
A147: 라. 송전설비공사 | B147: 3
A148: 마. 변전설비공사(전기설비 및 기기설치공사를 포함한다) | B148: 3
A149: 바. 배전설비공사
A150: 1) 배전설비 철탑공사 | B150: 3
A151: 2) 1) 외의 배전설비공사 | B151: 2
A152: 사. 그 밖의 전기설비공사 | B152: 1
A153: 3. 「정보통신공사업법」에 따른 정보통신공사
A154: 가. 터널식 또는 개착식 등의 통신구공사 | B154: 5
A155: 나. 「전기통신기본법」 제2조제4호에 따른 사업용 전기통신설비 중 케이블설치공사(구내에서 시공되는 공사는 제외한다), 관로공사, 철탑공사, 교환기설치공사, 전송설비공사, 위성통신설비공사 | B155: 3
A156: 다. 가목 및 나목의 공사 외의 공사 | B156: 1
A157: 4. 「소방시설공사업법」에 따른 소방시설공사
A158: 가. 피난기구, 유도등, 유도표지, 비상경보설비, 비상조명등, 비상방송설비 및 무선통신보조설비 | B158: 2
A159: 나. 자동식소화기, 옥내소화전설비, 스프링클러설비, 간이스프링클러설비, 물분무등소화설비, 옥외소화전설비, 자동화재탐지설비, 상수도소화용수설비 및 소화활동설비(무선통신보조설비는 제외한다) | B159: 3
A160: 5.「문화재보호법」에 따른 문화재 수리공사
A161: 가. 성곽
A162: 1) 석성(石城)
A163: 가) 화강석 등을 방형 형태로 다듬어 쌓은 구조 | B163: 5
A164: 나) 자연상태의 돌을 사용하여 쌓은 구조 | B164: 3
A165: 2) 토성(土城), 혼축성(混築城) | B165: 2
A166: 3) 전축성(塼築城) | B166: 3
A167: 4) 목책성(木柵城) | B167: 1
A168: 나. 탑·석조물
A169: 1) 석불(石佛), 부도(浮屠), 비석(碑石), 석등(石燈), 당간지주(幢竿支柱), 지석묘(支石墓), 석빙고(石氷庫), 석탑(石塔), 석교(石橋) 등 | B169: 5
A170: 2) 전탑(塼塔) | B170: 3
A171: 3) 새로운 재료로 교체한 석재부(石材部) | B171: 7
A172: 다. 목조건축물
A173: 1) 지붕
A174: 가) 산자(橵子) 또는 개판(蓋板) 이상의 기와지붕 | B174: 3
A175: 나) 산자 또는 개판 이상의 너와지붕 | B175: 2
A176: 다) 억새 등을 이용한 선사시대 움집 | B176: 2
A177: 라) 산자 또는 개판 이상의 초가지붕 | B177: 1
A178: 2) 목부재(木部材)
A179: 가) 기둥, 창방, 대들보, 도리 등 주요 구조재 | B179: 3
A180: 나) 그 밖의 구조재 | B180: 2
A181: 3) 목조건축물의 수장재(修粧材) | B181: 1
A182: 4) 기초 및 기단
A183: 가) 정(井)자형 장대석 기초 | B183: 10
A184: 나) 강회잡석 적심기초, 화강석 가공주초 | B184: 7
A185: 다) 도드락다듬 이상의 석조 기단·월대의 지대석 | B185: 5
A186: 라) 그 밖의 기초 및 기단 | B186: 3
A187: 5) 미장 및 아궁이, 굴뚝, 방고래 등 구들과 관련되는 시설의 수리 | B187: 2
A188: 6) 건축물의 단청(벽화 및 불화를 포함한다) | B188: 2
A189: 라. 담
A190: 1) 사괴석(四塊石) 담장의 장대지대석 | B190: 5
A191: 2) 그 밖의 사괴석담 | B191: 3
A192: 3) 돌담, 자연석담, 판축담, 토담, 전축담, 와편담 | B192: 2
A193: 마. 분묘
A194: 1) 봉분시설(잔디 심기는 제외한다) | B194: 2
A195: 2) 구조부
A196: 가) 적석총(積石塚)·석곽묘(石槨墓) | B196: 5
A197: 나) 전축분(塼築墳) | B197: 3
A198: 다) 목곽묘(木槨墓) | B198: 1
A199: 3) 병풍석(屛風石) | B199: 3
A200: 바. 도로
A201: 1) 암거, 배수로, 측구, 맨홀 | B201: 2
A202: 2) 포장
A203: 가) 박석, 포방전 | B203: 2
A204: 나) 마사토, 강회다짐, 그 밖의 혼합토 등 | B204: 1
A205: 사. 철물
A206: 1) 장식철물, 보호철물, 관리철물 | B206: 2
A207: 2) 구조철물, 보강철물 | B207: 3
A208: 아. 조경, 식물보호, 발굴지정비, 벽화 등
... 6 more rows

Sheet 참고자료
B5: ◎ 관련법령
B6: ▶ 건설산업기본법
B7: ▶ 국가를 당사자로 하는 계약에 관한 법률, 시행령, 시행규칙
B8: ▶ 지방자치단체를 당사자로 하는 계약에 관한 법률, 시행령, 시행규칙
B9: ▶ 사립학교법
B10: ▶ 지방자치단체 공사계약일반조건(행정자치부 예규)
B11: ▶ 공사계약 일반조건
B12: ▶ 공사계약 특수조건
B13: ▶ 사학기관 재무·회계 규칙(교육부령, 2013)
B15: ◎ 참고자료
B16: ▶ 청렴계약서(서약서) 시행(조달청, 2013)
B17: ▶ 지방계약법 개정에 따른 청렴서약제 시행(서울특별시교육청 교육재정과, 2014)
B18: ▶ 2015 학교계약 실무표준교재(서울특별시교육연수원, 2015)
B19: ▶ 전기, 정보통신, 소방시설공사 감독자 업무지침
B20: ▶ 전기·수도료 계산식(서울특별시교육청 교육시설안전과, 2015)
B21: ▶ 계약서류(공사) 목록안내(서울특별시교육청 교육재정과)
B22: ▶ 공사관련제서식자동생성.xls(교육행정지원시스템, 월정초 이재우)
B23: ▶ 공사서류-엑셀.xls(교육행정전문사이트 UPOW.ORG, 그리하라)
B24: ▶ 계약서~청구서 서식.xls(밀양시 회계과)
B25: ▶ 착공 준공 공사 관련 자료.xls(대구광역시교육청)

Sheet Sheet2
